Workbook

Sheet Menü
N4: 2.2
A13: =" Version " & N4 -> Version 2.2
E14: Gewichtsentwicklung:
E22: Herden- / Tiergruppendaten:
E23: Betriebskennung: | G23: Tieranzahl: | I23: Schlupfdatum:
E24: Stall / Abteil: | G24: Herkunft: | I24: MTool ©, Dr. Christiane Keppler

Sheet Homogenitätsanalyse
B2: Herden- / Tiergruppendaten: | T2: Gewichtsklassen: | U2: Von: | V2: Bis: | W2: Von-Bis: | X2: Wert X | Y2: Normverteilung: | Z2: Anzahl pro Klasse:
B3: Betriebskennung: | D3: Stall / Abteil: | F3: Tieranzahl: | G3: Herkunft: | K3: Schlupfdatum:
B4: =Menü!F23 -> 0 | D4: =Menü!F24 -> 0 | F4: =Menü!H23 -> 0 | G4: =Menü!H24 -> 0 | K4: =Menü!J23 -> 00:00:00 | T4: 1 | U4: =ROUNDDOWN(E12,-1) ->  | V4: =ROUNDDOWN(E12,-1)+((ROUNDUP(E13,-1)-ROUNDDOWN(E12,-1))/10) ->  | W4: =U4&" - "&V4 ->  | X4: =U4 ->  | Y4: =NORMDIST(X4,E$11,E$14,FALSE) ->  | Z4: =VLOOKUP($B$8,Daten!$A$6:$X$115,15,FALSE) -> 
T5: 2 | U5: =ROUNDDOWN(E$12,-1)+((ROUNDUP(E$13,-1)-ROUNDDOWN(E$12,-1))/10) ->  | V5: =ROUNDDOWN(E$12,-1)+((ROUNDUP(E$13,-1)-ROUNDDOWN(E$12,-1))/10*2) ->  | W5: =U5&" - "&V5 ->  | X5: =U5 ->  | Z5: =VLOOKUP($B$8,Daten!$A$6:$X$115,16,FALSE) -> 
B6: Gewichtsaufnahmedaten: | T6: 3 | U6: =ROUNDDOWN(E$12,-1)+((ROUNDUP(E$13,-1)-ROUNDDOWN(E$12,-1))/10*2) ->  | V6: =ROUNDDOWN(E$12,-1)+((ROUNDUP(E$13,-1)-ROUNDDOWN(E$12,-1))/10*3) ->  | Z6: =VLOOKUP($B$8,Daten!$A$6:$X$115,17,FALSE) -> 
B7: Aufnahmedatum: | C7: Lebenstag: | E7: Lebenswoche: | G7: Anzahl gew. Tiere: | T7: 4 | U7: =ROUNDDOWN(E$12,-1)+((ROUNDUP(E$13,-1)-ROUNDDOWN(E$12,-1))/10*3) ->  | V7: =ROUNDDOWN(E$12,-1)+((ROUNDUP(E$13,-1)-ROUNDDOWN(E$12,-1))/10*4) ->  | Z7: =VLOOKUP($B$8,Daten!$A$6:$X$115,18,FALSE) -> 
B8: 1900-01-01 | C8: =VLOOKUP($B$8,Daten!$A$6:$X$115,2,FALSE) ->  | E8: =VLOOKUP($B$8,Daten!$A$6:$X$115,3,FALSE) ->  | G8: =VLOOKUP($B$8,Daten!$A$6:$X$115,4,FALSE) ->  | T8: 5 | U8: =ROUNDDOWN(E$12,-1)+((ROUNDUP(E$13,-1)-ROUNDDOWN(E$12,-1))/10*4) ->  | V8: =ROUNDDOWN(E$12,-1)+((ROUNDUP(E$13,-1)-ROUNDDOWN(E$12,-1))/10*5) ->  | Z8: =VLOOKUP($B$8,Daten!$A$6:$X$115,19,FALSE) -> 
T9: 6 | U9: =ROUNDDOWN(E$12,-1)+((ROUNDUP(E$13,-1)-ROUNDDOWN(E$12,-1))/10*5) ->  | V9: =ROUNDDOWN(E$12,-1)+((ROUNDUP(E$13,-1)-ROUNDDOWN(E$12,-1))/10*6) ->  | Z9: =VLOOKUP($B$8,Daten!$A$6:$X$115,20,FALSE) -> 
B10: Gewichtsdaten: | T10: 7 | U10: =ROUNDDOWN(E$12,-1)+((ROUNDUP(E$13,-1)-ROUNDDOWN(E$12,-1))/10*6) ->  | V10: =ROUNDDOWN(E$12,-1)+((ROUNDUP(E$13,-1)-ROUNDDOWN(E$12,-1))/10*7) ->  | Z10: =VLOOKUP($B$8,Daten!$A$6:$X$115,21,FALSE) -> 
B11: Mittelwert: | E11: =VLOOKUP($B$8,Daten!$A$6:$X$115,5,FALSE) ->  | T11: 8 | U11: =ROUNDDOWN(E$12,-1)+((ROUNDUP(E$13,-1)-ROUNDDOWN(E$12,-1))/10*7) ->  | V11: =ROUNDDOWN(E$12,-1)+((ROUNDUP(E$13,-1)-ROUNDDOWN(E$12,-1))/10*8) ->  | Z11: =VLOOKUP($B$8,Daten!$A$6:$X$115,22,FALSE) -> 
B12: Minimum: | E12: =VLOOKUP($B$8,Daten!$A$6:$X$115,6,FALSE) ->  | T12: 9 | U12: =ROUNDDOWN(E$12,-1)+((ROUNDUP(E$13,-1)-ROUNDDOWN(E$12,-1))/10*8) ->  | V12: =ROUNDDOWN(E$12,-1)+((ROUNDUP(E$13,-1)-ROUNDDOWN(E$12,-1))/10*9) ->  | Z12: =VLOOKUP($B$8,Daten!$A$6:$X$115,23,FALSE) -> 
B13: Maximum: | E13: =VLOOKUP($B$8,Daten!$A$6:$X$115,7,FALSE) ->  | T13: 10 | U13: =ROUNDDOWN(E$12,-1)+((ROUNDUP(E$13,-1)-ROUNDDOWN(E$12,-1))/10*9) ->  | V13: =ROUNDUP(E$13,-1) ->  | Z13: =VLOOKUP($B$8,Daten!$A$6:$X$115,24,FALSE) -> 
B14: Standardabweichung: | E14: =VLOOKUP($B$8,Daten!$A$6:$X$115,8,FALSE) ->  | X14: =V13 -> 
B15: Variationskoeffizient: | E15: =VLOOKUP($B$8,Daten!$A$6:$X$115,9,FALSE) -> 
B16: Sollgewicht: | E16: =VLOOKUP($B$8,Daten!$A$6:$X$115,10,FALSE) -> 
B17: Sollgewichtserfüllung: | E17: =VLOOKUP($B$8,Daten!$A$6:$X$115,11,FALSE) ->  | S17: 2 | T17: kein Handlungsbedarf
B18: Uniformität: | E18: =VLOOKUP($B$8,Daten!$A$6:$X$115,12,FALSE) ->  | S18: 1 | T18: Handlungsbedarf
B19: Anteil Tiere mit zu niedrigem Gewicht: | E19: =VLOOKUP($B$8,Daten!$A$6:$X$115,13,FALSE) ->  | S19: 0 | T19: dringender Handlungsbedarf
B20: Anzahl Tiere außerhalb 80%: | E20: =VLOOKUP($B$8,Daten!$A$6:$X$115,14,FALSE) -> 

Sheet Daten
A2: Betriebskennung: | C2: =Menü!F23 -> 0 | E2: Tieranzahl: | G2: =Menü!H23 -> 0
A3: Stall / Abteil: | C3: =Menü!F24 -> 0 | E3: Herkunft: | G3: =Menü!H24 -> 0 | J3: Schlupfdatum: | L3: =Menü!J23 -> 00:00:00
A5: Aufnahme-datum | B5: Lebens- tag | C5: Lebens-woche | D5: Anzahl gewogener Tiere | E5: Mittelwert | F5: Minimum | G5: Maximum | H5: Standart-abweichung | I5: Variationakoeffizient: | J5: Sollgewicht | K5: Sollgewichts-erfüllung | L5: Uniformität | M5: Anteil Tiere mit niedrigem Gewicht | N5: Anzahl Tiere Außerhalb 80%: | O5: Anzahl Tiere Klasse 1: | P5: Anzahl Tiere Klasse 2: | Q5: Anzahl Tiere Klasse 3: | R5: Anzahl Tiere Klasse 4: | S5: Anzahl Tiere Klasse 5: | T5: Anzahl Tiere Klasse 6: | U5: Anzahl Tiere Klasse 7: | V5: Anzahl Tiere Klasse 8: | W5: Anzahl Tiere Klasse 9: | X5: Anzahl Tiere Klasse 10: | Y5: # 1 | Z5: # 2 | AA5: # 3 | AB5: # 4 | AC5: # 5 | AD5: # 6 | AE5: # 7 | AF5: # 8 | AG5: # 9 | AH5: # 10 | AI5: # 11 | AJ5: # 12 | AK5: # 13 | AL5: # 14 | AM5: # 15 | AN5: # 16 | AO5: # 17 | AP5: # 18 | AQ5: # 19 | AR5: # 20 | AS5: # 21 | AT5: # 22 | AU5: # 23 | AV5: # 24 | AW5: # 25 | AX5: # 26 | AY5: # 27 | AZ5: # 28 | BA5: # 29 | BB5: # 30 | BC5: # 31 | BD5: # 32 | BE5: # 33 | BF5: # 34 | BG5: # 35 | BH5: # 36 | BI5: # 37 | BJ5: # 38 | BK5: # 39 | BL5: # 40 | BM5: # 41 | BN5: # 42 | BO5: # 43 | BP5: # 44 | BQ5: # 45 | BR5: # 46 | BS5: # 47 | BT5: # 48 | BU5: # 49 | BV5: # 50 | BW5: # 51 | BX5: # 52 | BY5: # 53 | BZ5: # 54 | CA5: # 55 | CB5: # 56 | CC5: # 57 | CD5: # 58 | CE5: # 59 | CF5: # 60 | CG5: # 61 | CH5: # 62 | CI5: # 63 | CJ5: # 64 | CK5: # 65 | CL5: # 66 | CM5: # 67 | CN5: # 68 | CO5: # 69 | CP5: # 70 | CQ5: # 71 | CR5: # 72 | CS5: # 73 | CT5: # 74 | CU5: # 75 | CV5: # 76 | CW5: # 77 | CX5: # 78 | CY5: # 79 | CZ5: # 80 | DA5: # 81 | DB5: # 82 | DC5: # 83 | DD5: # 84 | DE5: # 85 | DF5: # 86 | DG5: # 87 | DH5: # 88 | DI5: # 89 | DJ5: # 90 | DK5: # 91 | DL5: # 92 | DM5: # 93 | DN5: # 94 | DO5: # 95 | DP5: # 96 | DQ5: # 97 | DR5: # 98 | DS5: # 99 | DT5: # 100 | DU5: # 101 | DV5: # 102 | DW5: # 103 | DX5: # 104 | DY5: # 105 | DZ5: # 106 | EA5: # 107 | EB5: # 108 | EC5: # 109 | ED5: # 110 | EE5: # 111 | EF5: # 112 | EG5: # 113 | EH5: # 114 | EI5: # 115 | EJ5: # 116 | EK5: # 117 | EL5: # 118 | EM5: # 119 | EN5: # 120 | EO5: # 121 | EP5: # 122 | EQ5: # 123 | ER5: # 124 | ES5: # 125 | ET5: # 126 | EU5: # 127 | EV5: # 128 | EW5: # 129 | EX5: # 130 | EY5: # 131 | EZ5: # 132 | FA5: # 133 | FB5: # 134 | FC5: # 135 | FD5: # 136 | FE5: # 137 | FF5: # 138 | FG5: # 139 | FH5: # 140 | FI5: # 141 | FJ5: # 142 | FK5: # 143 | FL5: # 144 | FM5: # 145 | FN5: # 146 | FO5: # 147 | FP5: # 148 | FQ5: # 149
B6: =A6-L$3 -> 0 | C6: =ROUND(ROUNDUP((A6-L$3)/7,1),1) -> 0 | D6: =COUNTIF(Y6:FQ6,">0") -> 0 | E6: =ROUND(AVERAGE(Y6:FQ6),0) ->  | F6: =MIN(Y6:FQ6) -> 0 | G6: =MAX(Y6:FQ6) -> 0 | H6: =ROUND(STDEV(Y6:FQ6),0) ->  | I6: =ROUND(H6/E6,4) ->  | J6: =VLOOKUP(C6,Gewichtsentwicklung!P$6:R$568,3,FALSE) ->  | K6: =ROUND(E6/J6,4) ->  | L6: =ROUND((D6-N6)/D6,4) ->  | M6: =ROUND(COUNTIF(Y6:FQ6,"<"&J6*0.9)/D6,4) ->  | N6: =COUNTIF(Y6:FQ6,"<"&E6*0.9)+COUNTIF(Y6:FQ6,">"&E6*1.1) -> 0 | O6: =COUNTIF(Y6:FQ6,">="&ROUNDDOWN($F6,-1))-COUNTIF(Y6:FQ6,">="&ROUNDDOWN($F6,-1)+((ROUNDUP($G6,-1)-ROUNDDOWN($F6,-1))/10)) -> 0 | P6: =COUNTIF(Y6:FQ6,">="&ROUNDDOWN($F6,-1)+((ROUNDUP($G6,-1)-ROUNDDOWN($F6,-1))/10))-COUNTIF(Y6:FQ6,">="&ROUNDDOWN($F6,-1)+((ROUNDUP($G6,-1)-ROUNDDOWN($F6,-1))/10*2)) -> 0 | Q6: =COUNTIF(Y6:FQ6,">="&ROUNDDOWN($F6,-1)+((ROUNDUP($G6,-1)-ROUNDDOWN($F6,-1))/10*2))-COUNTIF(Y6:FQ6,">="&ROUNDDOWN($F6,-1)+((ROUNDUP($G6,-1)-ROUNDDOWN($F6,-1))/10*3)) -> 0 | R6: =COUNTIF(Y6:FQ6,">="&ROUNDDOWN($F6,-1)+((ROUNDUP($G6,-1)-ROUNDDOWN($F6,-1))/10*3))-COUNTIF(Y6:FQ6,">="&ROUNDDOWN($F6,-1)+((ROUNDUP($G6,-1)-ROUNDDOWN($F6,-1))/10*4)) -> 0 | S6: =COUNTIF(Y6:FQ6,">="&ROUNDDOWN($F6,-1)+((ROUNDUP($G6,-1)-ROUNDDOWN($F6,-1))/10*4))-COUNTIF(Y6:FQ6,">="&ROUNDDOWN($F6,-1)+((ROUNDUP($G6,-1)-ROUNDDOWN($F6,-1))/10*5)) -> 0 | T6: =COUNTIF(Y6:FQ6,">="&ROUNDDOWN($F6,-1)+((ROUNDUP($G6,-1)-ROUNDDOWN($F6,-1))/10*5))-COUNTIF(Y6:FQ6,">="&ROUNDDOWN($F6,-1)+((ROUNDUP($G6,-1)-ROUNDDOWN($F6,-1))/10*6)) -> 0 | U6: =COUNTIF(Y6:FQ6,">="&ROUNDDOWN($F6,-1)+((ROUNDUP($G6,-1)-ROUNDDOWN($F6,-1))/10*6))-COUNTIF(Y6:FQ6,">="&ROUNDDOWN($F6,-1)+((ROUNDUP($G6,-1)-ROUNDDOWN($F6,-1))/10*7)) -> 0 | V6: =COUNTIF(Y6:FQ6,">="&ROUNDDOWN($F6,-1)+((ROUNDUP($G6,-1)-ROUNDDOWN($F6,-1))/10*7))-COUNTIF(Y6:FQ6,">="&ROUNDDOWN($F6,-1)+((ROUNDUP($G6,-1)-ROUNDDOWN($F6,-1))/10*8)) -> 0 | W6: =COUNTIF(Y6:FQ6,">="&ROUNDDOWN($F6,-1)+((ROUNDUP($G6,-1)-ROUNDDOWN($F6,-1))/10*8))-COUNTIF(Y6:FQ6,">="&ROUNDDOWN($F6,-1)+((ROUNDUP($G6,-1)-ROUNDDOWN($F6,-1))/10*9)) -> 0 | X6: =COUNTIF(Y6:FQ6,">0"&ROUNDDOWN($F6,-1)+((ROUNDUP($G6,-1)-ROUNDDOWN($F6,-1))/10*9))-COUNTIF(Y6:FQ6,">"&ROUNDUP($G6,-1)) -> 0
B7: 0 | C7: 0 | D7: 0 | F7: 0 | G7: 0 | J7: =VLOOKUP(C7,Gewichtsentwicklung!P$6:R$568,3,FALSE) ->  | N7: 0 | O7: 0 | P7: 0 | Q7: 0 | R7: 0 | S7: 0 | T7: 0 | U7: 0 | V7: 0 | W7: 0 | X7: 0
B8: 0 | C8: 0 | D8: 0 | F8: 0 | G8: 0 | J8: =VLOOKUP(C8,Gewichtsentwicklung!P$6:R$568,3,FALSE) ->  | N8: 0 | O8: 0 | P8: 0 | Q8: 0 | R8: 0 | S8: 0 | T8: 0 | U8: 0 | V8: 0 | W8: 0 | X8: 0
B9: 0 | C9: 0 | D9: 0 | F9: 0 | G9: 0 | J9: =VLOOKUP(C9,Gewichtsentwicklung!P$6:R$568,3,FALSE) ->  | N9: 0 | O9: 0 | P9: 0 | Q9: 0 | R9: 0 | S9: 0 | T9: 0 | U9: 0 | V9: 0 | W9: 0 | X9: 0
B10: 0 | C10: 0 | D10: 0 | F10: 0 | G10: 0 | J10: =VLOOKUP(C10,Gewichtsentwicklung!P$6:R$568,3,FALSE) ->  | N10: 0 | O10: 0 | P10: 0 | Q10: 0 | R10: 0 | S10: 0 | T10: 0 | U10: 0 | V10: 0 | W10: 0 | X10: 0
B11: 0 | C11: 0 | D11: 0 | F11: 0 | G11: 0 | J11: =VLOOKUP(C11,Gewichtsentwicklung!P$6:R$568,3,FALSE) ->  | N11: 0 | O11: 0 | P11: 0 | Q11: 0 | R11: 0 | S11: 0 | T11: 0 | U11: 0 | V11: 0 | W11: 0 | X11: 0
B12: 0 | C12: 0 | D12: 0 | F12: 0 | G12: 0 | J12: =VLOOKUP(C12,Gewichtsentwicklung!P$6:R$568,3,FALSE) ->  | N12: 0 | O12: 0 | P12: 0 | Q12: 0 | R12: 0 | S12: 0 | T12: 0 | U12: 0 | V12: 0 | W12: 0 | X12: 0
B13: 0 | C13: 0 | D13: 0 | F13: 0 | G13: 0 | J13: =VLOOKUP(C13,Gewichtsentwicklung!P$6:R$568,3,FALSE) ->  | N13: 0 | O13: 0 | P13: 0 | Q13: 0 | R13: 0 | S13: 0 | T13: 0 | U13: 0 | V13: 0 | W13: 0 | X13: 0
B14: 0 | C14: 0 | D14: 0 | F14: 0 | G14: 0 | J14: =VLOOKUP(C14,Gewichtsentwicklung!P$6:R$568,3,FALSE) ->  | N14: 0 | O14: 0 | P14: 0 | Q14: 0 | R14: 0 | S14: 0 | T14: 0 | U14: 0 | V14: 0 | W14: 0 | X14: 0
B15: 0 | C15: 0 | D15: 0 | F15: 0 | G15: 0 | J15: =VLOOKUP(C15,Gewichtsentwicklung!P$6:R$568,3,FALSE) ->  | N15: 0 | O15: 0 | P15: 0 | Q15: 0 | R15: 0 | S15: 0 | T15: 0 | U15: 0 | V15: 0 | W15: 0 | X15: 0
B16: 0 | C16: 0 | D16: 0 | F16: 0 | G16: 0 | J16: =VLOOKUP(C16,Gewichtsentwicklung!P$6:R$568,3,FALSE) ->  | N16: 0 | O16: 0 | P16: 0 | Q16: 0 | R16: 0 | S16: 0 | T16: 0 | U16: 0 | V16: 0 | W16: 0 | X16: 0
B17: 0 | C17: 0 | D17: 0 | F17: 0 | G17: 0 | J17: =VLOOKUP(C17,Gewichtsentwicklung!P$6:R$568,3,FALSE) ->  | N17: 0 | O17: 0 | P17: 0 | Q17: 0 | R17: 0 | S17: 0 | T17: 0 | U17: 0 | V17: 0 | W17: 0 | X17: 0
B18: 0 | C18: 0 | D18: 0 | F18: 0 | G18: 0 | J18: =VLOOKUP(C18,Gewichtsentwicklung!P$6:R$568,3,FALSE) ->  | N18: 0 | O18: 0 | P18: 0 | Q18: 0 | R18: 0 | S18: 0 | T18: 0 | U18: 0 | V18: 0 | W18: 0 | X18: 0
B19: 0 | C19: 0 | D19: 0 | F19: 0 | G19: 0 | J19: =VLOOKUP(C19,Gewichtsentwicklung!P$6:R$568,3,FALSE) ->  | N19: 0 | O19: 0 | P19: 0 | Q19: 0 | R19: 0 | S19: 0 | T19: 0 | U19: 0 | V19: 0 | W19: 0 | X19: 0
B20: 0 | C20: 0 | D20: 0 | F20: 0 | G20: 0 | J20: =VLOOKUP(C20,Gewichtsentwicklung!P$6:R$568,3,FALSE) ->  | N20: 0 | O20: 0 | P20: 0 | Q20: 0 | R20: 0 | S20: 0 | T20: 0 | U20: 0 | V20: 0 | W20: 0 | X20: 0
B21: 0 | C21: 0 | D21: 0 | F21: 0 | G21: 0 | J21: =VLOOKUP(C21,Gewichtsentwicklung!P$6:R$568,3,FALSE) ->  | N21: 0 | O21: 0 | P21: 0 | Q21: 0 | R21: 0 | S21: 0 | T21: 0 | U21: 0 | V21: 0 | W21: 0 | X21: 0
B22: 0 | C22: 0 | D22: 0 | F22: 0 | G22: 0 | J22: =VLOOKUP(C22,Gewichtsentwicklung!P$6:R$568,3,FALSE) ->  | N22: 0 | O22: 0 | P22: 0 | Q22: 0 | R22: 0 | S22: 0 | T22: 0 | U22: 0 | V22: 0 | W22: 0 | X22: 0
B23: 0 | C23: 0 | D23: 0 | F23: 0 | G23: 0 | J23: =VLOOKUP(C23,Gewichtsentwicklung!P$6:R$568,3,FALSE) ->  | N23: 0 | O23: 0 | P23: 0 | Q23: 0 | R23: 0 | S23: 0 | T23: 0 | U23: 0 | V23: 0 | W23: 0 | X23: 0
B24: 0 | C24: 0 | D24: 0 | F24: 0 | G24: 0 | J24: =VLOOKUP(C24,Gewichtsentwicklung!P$6:R$568,3,FALSE) ->  | N24: 0 | O24: 0 | P24: 0 | Q24: 0 | R24: 0 | S24: 0 | T24: 0 | U24: 0 | V24: 0 | W24: 0 | X24: 0
B25: 0 | C25: 0 | D25: 0 | F25: 0 | G25: 0 | J25: =VLOOKUP(C25,Gewichtsentwicklung!P$6:R$568,3,FALSE) ->  | N25: 0 | O25: 0 | P25: 0 | Q25: 0 | R25: 0 | S25: 0 | T25: 0 | U25: 0 | V25: 0 | W25: 0 | X25: 0
B26: 0 | C26: 0 | D26: 0 | F26: 0 | G26: 0 | J26: =VLOOKUP(C26,Gewichtsentwicklung!P$6:R$568,3,FALSE) ->  | N26: 0 | O26: 0 | P26: 0 | Q26: 0 | R26: 0 | S26: 0 | T26: 0 | U26: 0 | V26: 0 | W26: 0 | X26: 0
B27: 0 | C27: 0 | D27: 0 | F27: 0 | G27: 0 | J27: =VLOOKUP(C27,Gewichtsentwicklung!P$6:R$568,3,FALSE) ->  | N27: 0 | O27: 0 | P27: 0 | Q27: 0 | R27: 0 | S27: 0 | T27: 0 | U27: 0 | V27: 0 | W27: 0 | X27: 0
B28: 0 | C28: 0 | D28: 0 | F28: 0 | G28: 0 | J28: =VLOOKUP(C28,Gewichtsentwicklung!P$6:R$568,3,FALSE) ->  | N28: 0 | O28: 0 | P28: 0 | Q28: 0 | R28: 0 | S28: 0 | T28: 0 | U28: 0 | V28: 0 | W28: 0 | X28: 0
B29: 0 | C29: 0 | D29: 0 | F29: 0 | G29: 0 | J29: =VLOOKUP(C29,Gewichtsentwicklung!P$6:R$568,3,FALSE) ->  | N29: 0 | O29: 0 | P29: 0 | Q29: 0 | R29: 0 | S29: 0 | T29: 0 | U29: 0 | V29: 0 | W29: 0 | X29: 0
B30: 0 | C30: 0 | D30: 0 | F30: 0 | G30: 0 | J30: =VLOOKUP(C30,Gewichtsentwicklung!P$6:R$568,3,FALSE) ->  | N30: 0 | O30: 0 | P30: 0 | Q30: 0 | R30: 0 | S30: 0 | T30: 0 | U30: 0 | V30: 0 | W30: 0 | X30: 0
B31: 0 | C31: 0 | D31: 0 | F31: 0 | G31: 0 | J31: =VLOOKUP(C31,Gewichtsentwicklung!P$6:R$568,3,FALSE) ->  | N31: 0 | O31: 0 | P31: 0 | Q31: 0 | R31: 0 | S31: 0 | T31: 0 | U31: 0 | V31: 0 | W31: 0 | X31: 0
B32: 0 | C32: 0 | D32: 0 | F32: 0 | G32: 0 | J32: =VLOOKUP(C32,Gewichtsentwicklung!P$6:R$568,3,FALSE) ->  | N32: 0 | O32: 0 | P32: 0 | Q32: 0 | R32: 0 | S32: 0 | T32: 0 | U32: 0 | V32: 0 | W32: 0 | X32: 0
B33: 0 | C33: 0 | D33: 0 | F33: 0 | G33: 0 | J33: =VLOOKUP(C33,Gewichtsentwicklung!P$6:R$568,3,FALSE) ->  | N33: 0 | O33: 0 | P33: 0 | Q33: 0 | R33: 0 | S33: 0 | T33: 0 | U33: 0 | V33: 0 | W33: 0 | X33: 0
B34: 0 | C34: 0 | D34: 0 | F34: 0 | G34: 0 | J34: =VLOOKUP(C34,Gewichtsentwicklung!P$6:R$568,3,FALSE) ->  | N34: 0 | O34: 0 | P34: 0 | Q34: 0 | R34: 0 | S34: 0 | T34: 0 | U34: 0 | V34: 0 | W34: 0 | X34: 0
B35: 0 | C35: 0 | D35: 0 | F35: 0 | G35: 0 | J35: =VLOOKUP(C35,Gewichtsentwicklung!P$6:R$568,3,FALSE) ->  | N35: 0 | O35: 0 | P35: 0 | Q35: 0 | R35: 0 | S35: 0 | T35: 0 | U35: 0 | V35: 0 | W35: 0 | X35: 0
B36: 0 | C36: 0 | D36: 0 | F36: 0 | G36: 0 | J36: =VLOOKUP(C36,Gewichtsentwicklung!P$6:R$568,3,FALSE) ->  | N36: 0 | O36: 0 | P36: 0 | Q36: 0 | R36: 0 | S36: 0 | T36: 0 | U36: 0 | V36: 0 | W36: 0 | X36: 0
B37: 0 | C37: 0 | D37: 0 | F37: 0 | G37: 0 | J37: =VLOOKUP(C37,Gewichtsentwicklung!P$6:R$568,3,FALSE) ->  | N37: 0 | O37: 0 | P37: 0 | Q37: 0 | R37: 0 | S37: 0 | T37: 0 | U37: 0 | V37: 0 | W37: 0 | X37: 0
B38: =A38-L$3 -> 0 | C38: =ROUND(ROUNDUP((A38-L$3)/7,1),1) -> 0 | D38: =COUNTIF(Y38:FQ38,">0") -> 0 | E38: =ROUND(AVERAGE(Y38:FQ38),0) ->  | F38: =MIN(Y38:FQ38) -> 0 | G38: =MAX(Y38:FQ38) -> 0 | H38: =ROUND(STDEV(Y38:FQ38),0) ->  | I38: =ROUND(H38/E38,4) ->  | J38: =VLOOKUP(C38,Gewichtsentwicklung!P$6:R$568,3,FALSE) ->  | K38: =ROUND(E38/J38,4) ->  | L38: =ROUND((D38-N38)/D38,4) ->  | M38: =ROUND(COUNTIF(Y38:FQ38,"<"&J38*0.9)/D38,4) ->  | N38: =COUNTIF(Y38:FQ38,"<"&E38*0.9)+COUNTIF(Y38:FQ38,">"&E38*1.1) -> 0 | O38: =COUNTIF(Y38:FQ38,">="&ROUNDDOWN($F38,-1))-COUNTIF(Y38:FQ38,">="&ROUNDDOWN($F38,-1)+((ROUNDUP($G38,-1)-ROUNDDOWN($F38,-1))/10)) -> 0 | P38: =COUNTIF(Y38:FQ38,">="&ROUNDDOWN($F38,-1)+((ROUNDUP($G38,-1)-ROUNDDOWN($F38,-1))/10))-COUNTIF(Y38:FQ38,">="&ROUNDDOWN($F38,-1)+((ROUNDUP($G38,-1)-ROUNDDOWN($F38,-1))/10*2)) -> 0 | Q38: =COUNTIF(Y38:FQ38,">="&ROUNDDOWN($F38,-1)+((ROUNDUP($G38,-1)-ROUNDDOWN($F38,-1))/10*2))-COUNTIF(Y38:FQ38,">="&ROUNDDOWN($F38,-1)+((ROUNDUP($G38,-1)-ROUNDDOWN($F38,-1))/10*3)) -> 0 | R38: =COUNTIF(Y38:FQ38,">="&ROUNDDOWN($F38,-1)+((ROUNDUP($G38,-1)-ROUNDDOWN($F38,-1))/10*3))-COUNTIF(Y38:FQ38,">="&ROUNDDOWN($F38,-1)+((ROUNDUP($G38,-1)-ROUNDDOWN($F38,-1))/10*4)) -> 0 | S38: =COUNTIF(Y38:FQ38,">="&ROUNDDOWN($F38,-1)+((ROUNDUP($G38,-1)-ROUNDDOWN($F38,-1))/10*4))-COUNTIF(Y38:FQ38,">="&ROUNDDOWN($F38,-1)+((ROUNDUP($G38,-1)-ROUNDDOWN($F38,-1))/10*5)) -> 0 | T38: =COUNTIF(Y38:FQ38,">="&ROUNDDOWN($F38,-1)+((ROUNDUP($G38,-1)-ROUNDDOWN($F38,-1))/10*5))-COUNTIF(Y38:FQ38,">="&ROUNDDOWN($F38,-1)+((ROUNDUP($G38,-1)-ROUNDDOWN($F38,-1))/10*6)) -> 0 | U38: =COUNTIF(Y38:FQ38,">="&ROUNDDOWN($F38,-1)+((ROUNDUP($G38,-1)-ROUNDDOWN($F38,-1))/10*6))-COUNTIF(Y38:FQ38,">="&ROUNDDOWN($F38,-1)+((ROUNDUP($G38,-1)-ROUNDDOWN($F38,-1))/10*7)) -> 0 | V38: =COUNTIF(Y38:FQ38,">="&ROUNDDOWN($F38,-1)+((ROUNDUP($G38,-1)-ROUNDDOWN($F38,-1))/10*7))-COUNTIF(Y38:FQ38,">="&ROUNDDOWN($F38,-1)+((ROUNDUP($G38,-1)-ROUNDDOWN($F38,-1))/10*8)) -> 0 | W38: =COUNTIF(Y38:FQ38,">="&ROUNDDOWN($F38,-1)+((ROUNDUP($G38,-1)-ROUNDDOWN($F38,-1))/10*8))-COUNTIF(Y38:FQ38,">="&ROUNDDOWN($F38,-1)+((ROUNDUP($G38,-1)-ROUNDDOWN($F38,-1))/10*9)) -> 0 | X38: =COUNTIF(Y38:FQ38,">0"&ROUNDDOWN($F38,-1)+((ROUNDUP($G38,-1)-ROUNDDOWN($F38,-1))/10*9))-COUNTIF(Y38:FQ38,">"&ROUNDUP($G38,-1)) -> 0
B39: 0 | C39: 0 | D39: 0 | F39: 0 | G39: 0 | J39: =VLOOKUP(C39,Gewichtsentwicklung!P$6:R$568,3,FALSE) ->  | N39: 0 | O39: 0 | P39: 0 | Q39: 0 | R39: 0 | S39: 0 | T39: 0 | U39: 0 | V39: 0 | W39: 0 | X39: 0
B40: 0 | C40: 0 | D40: 0 | F40: 0 | G40: 0 | J40: =VLOOKUP(C40,Gewichtsentwicklung!P$6:R$568,3,FALSE) ->  | N40: 0 | O40: 0 | P40: 0 | Q40: 0 | R40: 0 | S40: 0 | T40: 0 | U40: 0 | V40: 0 | W40: 0 | X40: 0
B41: 0 | C41: 0 | D41: 0 | F41: 0 | G41: 0 | J41: =VLOOKUP(C41,Gewichtsentwicklung!P$6:R$568,3,FALSE) ->  | N41: 0 | O41: 0 | P41: 0 | Q41: 0 | R41: 0 | S41: 0 | T41: 0 | U41: 0 | V41: 0 | W41: 0 | X41: 0
B42: 0 | C42: 0 | D42: 0 | F42: 0 | G42: 0 | J42: =VLOOKUP(C42,Gewichtsentwicklung!P$6:R$568,3,FALSE) ->  | N42: 0 | O42: 0 | P42: 0 | Q42: 0 | R42: 0 | S42: 0 | T42: 0 | U42: 0 | V42: 0 | W42: 0 | X42: 0
B43: 0 | C43: 0 | D43: 0 | F43: 0 | G43: 0 | J43: =VLOOKUP(C43,Gewichtsentwicklung!P$6:R$568,3,FALSE) ->  | N43: 0 | O43: 0 | P43: 0 | Q43: 0 | R43: 0 | S43: 0 | T43: 0 | U43: 0 | V43: 0 | W43: 0 | X43: 0
B44: 0 | C44: 0 | D44: 0 | F44: 0 | G44: 0 | J44: =VLOOKUP(C44,Gewichtsentwicklung!P$6:R$568,3,FALSE) ->  | N44: 0 | O44: 0 | P44: 0 | Q44: 0 | R44: 0 | S44: 0 | T44: 0 | U44: 0 | V44: 0 | W44: 0 | X44: 0
B45: 0 | C45: 0 | D45: 0 | F45: 0 | G45: 0 | J45: =VLOOKUP(C45,Gewichtsentwicklung!P$6:R$568,3,FALSE) ->  | N45: 0 | O45: 0 | P45: 0 | Q45: 0 | R45: 0 | S45: 0 | T45: 0 | U45: 0 | V45: 0 | W45: 0 | X45: 0
B46: 0 | C46: 0 | D46: 0 | F46: 0 | G46: 0 | J46: =VLOOKUP(C46,Gewichtsentwicklung!P$6:R$568,3,FALSE) ->  | N46: 0 | O46: 0 | P46: 0 | Q46: 0 | R46: 0 | S46: 0 | T46: 0 | U46: 0 | V46: 0 | W46: 0 | X46: 0
B47: 0 | C47: 0 | D47: 0 | F47: 0 | G47: 0 | J47: =VLOOKUP(C47,Gewichtsentwicklung!P$6:R$568,3,FALSE) ->  | N47: 0 | O47: 0 | P47: 0 | Q47: 0 | R47: 0 | S47: 0 | T47: 0 | U47: 0 | V47: 0 | W47: 0 | X47: 0
B48: 0 | C48: 0 | D48: 0 | F48: 0 | G48: 0 | J48: =VLOOKUP(C48,Gewichtsentwicklung!P$6:R$568,3,FALSE) ->  | N48: 0 | O48: 0 | P48: 0 | Q48: 0 | R48: 0 | S48: 0 | T48: 0 | U48: 0 | V48: 0 | W48: 0 | X48: 0
B49: 0 | C49: 0 | D49: 0 | F49: 0 | G49: 0 | J49: =VLOOKUP(C49,Gewichtsentwicklung!P$6:R$568,3,FALSE) ->  | N49: 0 | O49: 0 | P49: 0 | Q49: 0 | R49: 0 | S49: 0 | T49: 0 | U49: 0 | V49: 0 | W49: 0 | X49: 0
B50: 0 | C50: 0 | D50: 0 | F50: 0 | G50: 0 | J50: =VLOOKUP(C50,Gewichtsentwicklung!P$6:R$568,3,FALSE) ->  | N50: 0 | O50: 0 | P50: 0 | Q50: 0 | R50: 0 | S50: 0 | T50: 0 | U50: 0 | V50: 0 | W50: 0 | X50: 0
B51: 0 | C51: 0 | D51: 0 | F51: 0 | G51: 0 | J51: =VLOOKUP(C51,Gewichtsentwicklung!P$6:R$568,3,FALSE) ->  | N51: 0 | O51: 0 | P51: 0 | Q51: 0 | R51: 0 | S51: 0 | T51: 0 | U51: 0 | V51: 0 | W51: 0 | X51: 0
B52: 0 | C52: 0 | D52: 0 | F52: 0 | G52: 0 | J52: =VLOOKUP(C52,Gewichtsentwicklung!P$6:R$568,3,FALSE) ->  | N52: 0 | O52: 0 | P52: 0 | Q52: 0 | R52: 0 | S52: 0 | T52: 0 | U52: 0 | V52: 0 | W52: 0 | X52: 0
B53: 0 | C53: 0 | D53: 0 | F53: 0 | G53: 0 | J53: =VLOOKUP(C53,Gewichtsentwicklung!P$6:R$568,3,FALSE) ->  | N53: 0 | O53: 0 | P53: 0 | Q53: 0 | R53: 0 | S53: 0 | T53: 0 | U53: 0 | V53: 0 | W53: 0 | X53: 0
B54: 0 | C54: 0 | D54: 0 | F54: 0 | G54: 0 | J54: =VLOOKUP(C54,Gewichtsentwicklung!P$6:R$568,3,FALSE) ->  | N54: 0 | O54: 0 | P54: 0 | Q54: 0 | R54: 0 | S54: 0 | T54: 0 | U54: 0 | V54: 0 | W54: 0 | X54: 0
B55: 0 | C55: 0 | D55: 0 | F55: 0 | G55: 0 | J55: =VLOOKUP(C55,Gewichtsentwicklung!P$6:R$568,3,FALSE) ->  | N55: 0 | O55: 0 | P55: 0 | Q55: 0 | R55: 0 | S55: 0 | T55: 0 | U55: 0 | V55: 0 | W55: 0 | X55: 0
B56: 0 | C56: 0 | D56: 0 | F56: 0 | G56: 0 | J56: =VLOOKUP(C56,Gewichtsentwicklung!P$6:R$568,3,FALSE) ->  | N56: 0 | O56: 0 | P56: 0 | Q56: 0 | R56: 0 | S56: 0 | T56: 0 | U56: 0 | V56: 0 | W56: 0 | X56: 0
B57: 0 | C57: 0 | D57: 0 | F57: 0 | G57: 0 | J57: =VLOOKUP(C57,Gewichtsentwicklung!P$6:R$568,3,FALSE) ->  | N57: 0 | O57: 0 | P57: 0 | Q57: 0 | R57: 0 | S57: 0 | T57: 0 | U57: 0 | V57: 0 | W57: 0 | X57: 0
B58: 0 | C58: 0 | D58: 0 | F58: 0 | G58: 0 | J58: =VLOOKUP(C58,Gewichtsentwicklung!P$6:R$568,3,FALSE) ->  | N58: 0 | O58: 0 | P58: 0 | Q58: 0 | R58: 0 | S58: 0 | T58: 0 | U58: 0 | V58: 0 | W58: 0 | X58: 0
B59: 0 | C59: 0 | D59: 0 | F59: 0 | G59: 0 | J59: =VLOOKUP(C59,Gewichtsentwicklung!P$6:R$568,3,FALSE) ->  | N59: 0 | O59: 0 | P59: 0 | Q59: 0 | R59: 0 | S59: 0 | T59: 0 | U59: 0 | V59: 0 | W59: 0 | X59: 0
B60: 0 | C60: 0 | D60: 0 | F60: 0 | G60: 0 | J60: =VLOOKUP(C60,Gewichtsentwicklung!P$6:R$568,3,FALSE) ->  | N60: 0 | O60: 0 | P60: 0 | Q60: 0 | R60: 0 | S60: 0 | T60: 0 | U60: 0 | V60: 0 | W60: 0 | X60: 0
B61: 0 | C61: 0 | D61: 0 | F61: 0 | G61: 0 | J61: =VLOOKUP(C61,Gewichtsentwicklung!P$6:R$568,3,FALSE) ->  | N61: 0 | O61: 0 | P61: 0 | Q61: 0 | R61: 0 | S61: 0 | T61: 0 | U61: 0 | V61: 0 | W61: 0 | X61: 0
B62: 0 | C62: 0 | D62: 0 | F62: 0 | G62: 0 | J62: =VLOOKUP(C62,Gewichtsentwicklung!P$6:R$568,3,FALSE) ->  | N62: 0 | O62: 0 | P62: 0 | Q62: 0 | R62: 0 | S62: 0 | T62: 0 | U62: 0 | V62: 0 | W62: 0 | X62: 0
B63: 0 | C63: 0 | D63: 0 | F63: 0 | G63: 0 | J63: =VLOOKUP(C63,Gewichtsentwicklung!P$6:R$568,3,FALSE) ->  | N63: 0 | O63: 0 | P63: 0 | Q63: 0 | R63: 0 | S63: 0 | T63: 0 | U63: 0 | V63: 0 | W63: 0 | X63: 0
B64: 0 | C64: 0 | D64: 0 | F64: 0 | G64: 0 | J64: =VLOOKUP(C64,Gewichtsentwicklung!P$6:R$568,3,FALSE) ->  | N64: 0 | O64: 0 | P64: 0 | Q64: 0 | R64: 0 | S64: 0 | T64: 0 | U64: 0 | V64: 0 | W64: 0 | X64: 0
B65: 0 | C65: 0 | D65: 0 | F65: 0 | G65: 0 | J65: =VLOOKUP(C65,Gewichtsentwicklung!P$6:R$568,3,FALSE) ->  | N65: 0 | O65: 0 | P65: 0 | Q65: 0 | R65: 0 | S65: 0 | T65: 0 | U65: 0 | V65: 0 | W65: 0 | X65: 0
B66: 0 | C66: 0 | D66: 0 | F66: 0 | G66: 0 | J66: =VLOOKUP(C66,Gewichtsentwicklung!P$6:R$568,3,FALSE) ->  | N66: 0 | O66: 0 | P66: 0 | Q66: 0 | R66: 0 | S66: 0 | T66: 0 | U66: 0 | V66: 0 | W66: 0 | X66: 0
B67: 0 | C67: 0 | D67: 0 | F67: 0 | G67: 0 | J67: =VLOOKUP(C67,Gewichtsentwicklung!P$6:R$568,3,FALSE) ->  | N67: 0 | O67: 0 | P67: 0 | Q67: 0 | R67: 0 | S67: 0 | T67: 0 | U67: 0 | V67: 0 | W67: 0 | X67: 0
B68: 0 | C68: 0 | D68: 0 | F68: 0 | G68: 0 | J68: =VLOOKUP(C68,Gewichtsentwicklung!P$6:R$568,3,FALSE) ->  | N68: 0 | O68: 0 | P68: 0 | Q68: 0 | R68: 0 | S68: 0 | T68: 0 | U68: 0 | V68: 0 | W68: 0 | X68: 0
B69: 0 | C69: 0 | D69: 0 | F69: 0 | G69: 0 | J69: =VLOOKUP(C69,Gewichtsentwicklung!P$6:R$568,3,FALSE) ->  | N69: 0 | O69: 0 | P69: 0 | Q69: 0 | R69: 0 | S69: 0 | T69: 0 | U69: 0 | V69: 0 | W69: 0 | X69: 0
B70: =A70-L$3 -> 0 | C70: =ROUND(ROUNDUP((A70-L$3)/7,1),1) -> 0 | D70: =COUNTIF(Y70:FQ70,">0") -> 0 | E70: =ROUND(AVERAGE(Y70:FQ70),0) ->  | F70: =MIN(Y70:FQ70) -> 0 | G70: =MAX(Y70:FQ70) -> 0 | H70: =ROUND(STDEV(Y70:FQ70),0) ->  | I70: =ROUND(H70/E70,4) ->  | J70: =VLOOKUP(C70,Gewichtsentwicklung!P$6:R$568,3,FALSE) ->  | K70: =ROUND(E70/J70,4) ->  | L70: =ROUND((D70-N70)/D70,4) ->  | M70: =ROUND(COUNTIF(Y70:FQ70,"<"&J70*0.9)/D70,4) ->  | N70: =COUNTIF(Y70:FQ70,"<"&E70*0.9)+COUNTIF(Y70:FQ70,">"&E70*1.1) -> 0 | O70: =COUNTIF(Y70:FQ70,">="&ROUNDDOWN($F70,-1))-COUNTIF(Y70:FQ70,">="&ROUNDDOWN($F70,-1)+((ROUNDUP($G70,-1)-ROUNDDOWN($F70,-1))/10)) -> 0 | P70: =COUNTIF(Y70:FQ70,">="&ROUNDDOWN($F70,-1)+((ROUNDUP($G70,-1)-ROUNDDOWN($F70,-1))/10))-COUNTIF(Y70:FQ70,">="&ROUNDDOWN($F70,-1)+((ROUNDUP($G70,-1)-ROUNDDOWN($F70,-1))/10*2)) -> 0 | Q70: =COUNTIF(Y70:FQ70,">="&ROUNDDOWN($F70,-1)+((ROUNDUP($G70,-1)-ROUNDDOWN($F70,-1))/10*2))-COUNTIF(Y70:FQ70,">="&ROUNDDOWN($F70,-1)+((ROUNDUP($G70,-1)-ROUNDDOWN($F70,-1))/10*3)) -> 0 | R70: =COUNTIF(Y70:FQ70,">="&ROUNDDOWN($F70,-1)+((ROUNDUP($G70,-1)-ROUNDDOWN($F70,-1))/10*3))-COUNTIF(Y70:FQ70,">="&ROUNDDOWN($F70,-1)+((ROUNDUP($G70,-1)-ROUNDDOWN($F70,-1))/10*4)) -> 0 | S70: =COUNTIF(Y70:FQ70,">="&ROUNDDOWN($F70,-1)+((ROUNDUP($G70,-1)-ROUNDDOWN($F70,-1))/10*4))-COUNTIF(Y70:FQ70,">="&ROUNDDOWN($F70,-1)+((ROUNDUP($G70,-1)-ROUNDDOWN($F70,-1))/10*5)) -> 0 | T70: =COUNTIF(Y70:FQ70,">="&ROUNDDOWN($F70,-1)+((ROUNDUP($G70,-1)-ROUNDDOWN($F70,-1))/10*5))-COUNTIF(Y70:FQ70,">="&ROUNDDOWN($F70,-1)+((ROUNDUP($G70,-1)-ROUNDDOWN($F70,-1))/10*6)) -> 0 | U70: =COUNTIF(Y70:FQ70,">="&ROUNDDOWN($F70,-1)+((ROUNDUP($G70,-1)-ROUNDDOWN($F70,-1))/10*6))-COUNTIF(Y70:FQ70,">="&ROUNDDOWN($F70,-1)+((ROUNDUP($G70,-1)-ROUNDDOWN($F70,-1))/10*7)) -> 0 | V70: =COUNTIF(Y70:FQ70,">="&ROUNDDOWN($F70,-1)+((ROUNDUP($G70,-1)-ROUNDDOWN($F70,-1))/10*7))-COUNTIF(Y70:FQ70,">="&ROUNDDOWN($F70,-1)+((ROUNDUP($G70,-1)-ROUNDDOWN($F70,-1))/10*8)) -> 0 | W70: =COUNTIF(Y70:FQ70,">="&ROUNDDOWN($F70,-1)+((ROUNDUP($G70,-1)-ROUNDDOWN($F70,-1))/10*8))-COUNTIF(Y70:FQ70,">="&ROUNDDOWN($F70,-1)+((ROUNDUP($G70,-1)-ROUNDDOWN($F70,-1))/10*9)) -> 0 | X70: =COUNTIF(Y70:FQ70,">0"&ROUNDDOWN($F70,-1)+((ROUNDUP($G70,-1)-ROUNDDOWN($F70,-1))/10*9))-COUNTIF(Y70:FQ70,">"&ROUNDUP($G70,-1)) -> 0
B71: 0 | C71: 0 | D71: 0 | F71: 0 | G71: 0 | J71: =VLOOKUP(C71,Gewichtsentwicklung!P$6:R$568,3,FALSE) ->  | N71: 0 | O71: 0 | P71: 0 | Q71: 0 | R71: 0 | S71: 0 | T71: 0 | U71: 0 | V71: 0 | W71: 0 | X71: 0
B72: 0 | C72: 0 | D72: 0 | F72: 0 | G72: 0 | J72: =VLOOKUP(C72,Gewichtsentwicklung!P$6:R$568,3,FALSE) ->  | N72: 0 | O72: 0 | P72: 0 | Q72: 0 | R72: 0 | S72: 0 | T72: 0 | U72: 0 | V72: 0 | W72: 0 | X72: 0
B73: 0 | C73: 0 | D73: 0 | F73: 0 | G73: 0 | J73: =VLOOKUP(C73,Gewichtsentwicklung!P$6:R$568,3,FALSE) ->  | N73: 0 | O73: 0 | P73: 0 | Q73: 0 | R73: 0 | S73: 0 | T73: 0 | U73: 0 | V73: 0 | W73: 0 | X73: 0
B74: 0 | C74: 0 | D74: 0 | F74: 0 | G74: 0 | J74: =VLOOKUP(C74,Gewichtsentwicklung!P$6:R$568,3,FALSE) ->  | N74: 0 | O74: 0 | P74: 0 | Q74: 0 | R74: 0 | S74: 0 | T74: 0 | U74: 0 | V74: 0 | W74: 0 | X74: 0
B75: 0 | C75: 0 | D75: 0 | F75: 0 | G75: 0 | J75: =VLOOKUP(C75,Gewichtsentwicklung!P$6:R$568,3,FALSE) ->  | N75: 0 | O75: 0 | P75: 0 | Q75: 0 | R75: 0 | S75: 0 | T75: 0 | U75: 0 | V75: 0 | W75: 0 | X75: 0
B76: 0 | C76: 0 | D76: 0 | F76: 0 | G76: 0 | J76: =VLOOKUP(C76,Gewichtsentwicklung!P$6:R$568,3,FALSE) ->  | N76: 0 | O76: 0 | P76: 0 | Q76: 0 | R76: 0 | S76: 0 | T76: 0 | U76: 0 | V76: 0 | W76: 0 | X76: 0
B77: 0 | C77: 0 | D77: 0 | F77: 0 | G77: 0 | J77: =VLOOKUP(C77,Gewichtsentwicklung!P$6:R$568,3,FALSE) ->  | N77: 0 | O77: 0 | P77: 0 | Q77: 0 | R77: 0 | S77: 0 | T77: 0 | U77: 0 | V77: 0 | W77: 0 | X77: 0
B78: 0 | C78: 0 | D78: 0 | F78: 0 | G78: 0 | J78: =VLOOKUP(C78,Gewichtsentwicklung!P$6:R$568,3,FALSE) ->  | N78: 0 | O78: 0 | P78: 0 | Q78: 0 | R78: 0 | S78: 0 | T78: 0 | U78: 0 | V78: 0 | W78: 0 | X78: 0
B79: 0 | C79: 0 | D79: 0 | F79: 0 | G79: 0 | J79: =VLOOKUP(C79,Gewichtsentwicklung!P$6:R$568,3,FALSE) ->  | N79: 0 | O79: 0 | P79: 0 | Q79: 0 | R79: 0 | S79: 0 | T79: 0 | U79: 0 | V79: 0 | W79: 0 | X79: 0
B80: 0 | C80: 0 | D80: 0 | F80: 0 | G80: 0 | J80: =VLOOKUP(C80,Gewichtsentwicklung!P$6:R$568,3,FALSE) ->  | N80: 0 | O80: 0 | P80: 0 | Q80: 0 | R80: 0 | S80: 0 | T80: 0 | U80: 0 | V80: 0 | W80: 0 | X80: 0
B81: 0 | C81: 0 | D81: 0 | F81: 0 | G81: 0 | J81: =VLOOKUP(C81,Gewichtsentwicklung!P$6:R$568,3,FALSE) ->  | N81: 0 | O81: 0 | P81: 0 | Q81: 0 | R81: 0 | S81: 0 | T81: 0 | U81: 0 | V81: 0 | W81: 0 | X81: 0
B82: 0 | C82: 0 | D82: 0 | F82: 0 | G82: 0 | J82: =VLOOKUP(C82,Gewichtsentwicklung!P$6:R$568,3,FALSE) ->  | N82: 0 | O82: 0 | P82: 0 | Q82: 0 | R82: 0 | S82: 0 | T82: 0 | U82: 0 | V82: 0 | W82: 0 | X82: 0
B83: 0 | C83: 0 | D83: 0 | F83: 0 | G83: 0 | J83: =VLOOKUP(C83,Gewichtsentwicklung!P$6:R$568,3,FALSE) ->  | N83: 0 | O83: 0 | P83: 0 | Q83: 0 | R83: 0 | S83: 0 | T83: 0 | U83: 0 | V83: 0 | W83: 0 | X83: 0
B84: 0 | C84: 0 | D84: 0 | F84: 0 | G84: 0 | J84: =VLOOKUP(C84,Gewichtsentwicklung!P$6:R$568,3,FALSE) ->  | N84: 0 | O84: 0 | P84: 0 | Q84: 0 | R84: 0 | S84: 0 | T84: 0 | U84: 0 | V84: 0 | W84: 0 | X84: 0
B85: 0 | C85: 0 | D85: 0 | F85: 0 | G85: 0 | J85: =VLOOKUP(C85,Gewichtsentwicklung!P$6:R$568,3,FALSE) ->  | N85: 0 | O85: 0 | P85: 0 | Q85: 0 | R85: 0 | S85: 0 | T85: 0 | U85: 0 | V85: 0 | W85: 0 | X85: 0
B86: 0 | C86: 0 | D86: 0 | F86: 0 | G86: 0 | J86: =VLOOKUP(C86,Gewichtsentwicklung!P$6:R$568,3,FALSE) ->  | N86: 0 | O86: 0 | P86: 0 | Q86: 0 | R86: 0 | S86: 0 | T86: 0 | U86: 0 | V86: 0 | W86: 0 | X86: 0
B87: 0 | C87: 0 | D87: 0 | F87: 0 | G87: 0 | J87: =VLOOKUP(C87,Gewichtsentwicklung!P$6:R$568,3,FALSE) ->  | N87: 0 | O87: 0 | P87: 0 | Q87: 0 | R87: 0 | S87: 0 | T87: 0 | U87: 0 | V87: 0 | W87: 0 | X87: 0
B88: 0 | C88: 0 | D88: 0 | F88: 0 | G88: 0 | J88: =VLOOKUP(C88,Gewichtsentwicklung!P$6:R$568,3,FALSE) ->  | N88: 0 | O88: 0 | P88: 0 | Q88: 0 | R88: 0 | S88: 0 | T88: 0 | U88: 0 | V88: 0 | W88: 0 | X88: 0
B89: 0 | C89: 0 | D89: 0 | F89: 0 | G89: 0 | J89: =VLOOKUP(C89,Gewichtsentwicklung!P$6:R$568,3,FALSE) ->  | N89: 0 | O89: 0 | P89: 0 | Q89: 0 | R89: 0 | S89: 0 | T89: 0 | U89: 0 | V89: 0 | W89: 0 | X89: 0
B90: 0 | C90: 0 | D90: 0 | F90: 0 | G90: 0 | J90: =VLOOKUP(C90,Gewichtsentwicklung!P$6:R$568,3,FALSE) ->  | N90: 0 | O90: 0 | P90: 0 | Q90: 0 | R90: 0 | S90: 0 | T90: 0 | U90: 0 | V90: 0 | W90: 0 | X90: 0
B91: 0 | C91: 0 | D91: 0 | F91: 0 | G91: 0 | J91: =VLOOKUP(C91,Gewichtsentwicklung!P$6:R$568,3,FALSE) ->  | N91: 0 | O91: 0 | P91: 0 | Q91: 0 | R91: 0 | S91: 0 | T91: 0 | U91: 0 | V91: 0 | W91: 0 | X91: 0
B92: 0 | C92: 0 | D92: 0 | F92: 0 | G92: 0 | J92: =VLOOKUP(C92,Gewichtsentwicklung!P$6:R$568,3,FALSE) ->  | N92: 0 | O92: 0 | P92: 0 | Q92: 0 | R92: 0 | S92: 0 | T92: 0 | U92: 0 | V92: 0 | W92: 0 | X92: 0
B93: 0 | C93: 0 | D93: 0 | F93: 0 | G93: 0 | J93: =VLOOKUP(C93,Gewichtsentwicklung!P$6:R$568,3,FALSE) ->  | N93: 0 | O93: 0 | P93: 0 | Q93: 0 | R93: 0 | S93: 0 | T93: 0 | U93: 0 | V93: 0 | W93: 0 | X93: 0
B94: 0 | C94: 0 | D94: 0 | F94: 0 | G94: 0 | J94: =VLOOKUP(C94,Gewichtsentwicklung!P$6:R$568,3,FALSE) ->  | N94: 0 | O94: 0 | P94: 0 | Q94: 0 | R94: 0 | S94: 0 | T94: 0 | U94: 0 | V94: 0 | W94: 0 | X94: 0
B95: 0 | C95: 0 | D95: 0 | F95: 0 | G95: 0 | J95: =VLOOKUP(C95,Gewichtsentwicklung!P$6:R$568,3,FALSE) ->  | N95: 0 | O95: 0 | P95: 0 | Q95: 0 | R95: 0 | S95: 0 | T95: 0 | U95: 0 | V95: 0 | W95: 0 | X95: 0
B96: 0 | C96: 0 | D96: 0 | F96: 0 | G96: 0 | J96: =VLOOKUP(C96,Gewichtsentwicklung!P$6:R$568,3,FALSE) ->  | N96: 0 | O96: 0 | P96: 0 | Q96: 0 | R96: 0 | S96: 0 | T96: 0 | U96: 0 | V96: 0 | W96: 0 | X96: 0
B97: 0 | C97: 0 | D97: 0 | F97: 0 | G97: 0 | J97: =VLOOKUP(C97,Gewichtsentwicklung!P$6:R$568,3,FALSE) ->  | N97: 0 | O97: 0 | P97: 0 | Q97: 0 | R97: 0 | S97: 0 | T97: 0 | U97: 0 | V97: 0 | W97: 0 | X97: 0
B98: 0 | C98: 0 | D98: 0 | F98: 0 | G98: 0 | J98: =VLOOKUP(C98,Gewichtsentwicklung!P$6:R$568,3,FALSE) ->  | N98: 0 | O98: 0 | P98: 0 | Q98: 0 | R98: 0 | S98: 0 | T98: 0 | U98: 0 | V98: 0 | W98: 0 | X98: 0
B99: 0 | C99: 0 | D99: 0 | F99: 0 | G99: 0 | J99: =VLOOKUP(C99,Gewichtsentwicklung!P$6:R$568,3,FALSE) ->  | N99: 0 | O99: 0 | P99: 0 | Q99: 0 | R99: 0 | S99: 0 | T99: 0 | U99: 0 | V99: 0 | W99: 0 | X99: 0
B100: 0 | C100: 0 | D100: 0 | F100: 0 | G100: 0 | J100: =VLOOKUP(C100,Gewichtsentwicklung!P$6:R$568,3,FALSE) ->  | N100: 0 | O100: 0 | P100: 0 | Q100: 0 | R100: 0 | S100: 0 | T100: 0 | U100: 0 | V100: 0 | W100: 0 | X100: 0
B101: 0 | C101: 0 | D101: 0 | F101: 0 | G101: 0 | J101: =VLOOKUP(C101,Gewichtsentwicklung!P$6:R$568,3,FALSE) ->  | N101: 0 | O101: 0 | P101: 0 | Q101: 0 | R101: 0 | S101: 0 | T101: 0 | U101: 0 | V101: 0 | W101: 0 | X101: 0
B102: =A102-L$3 -> 0 | C102: =ROUND(ROUNDUP((A102-L$3)/7,1),1) -> 0 | D102: =COUNTIF(Y102:FQ102,">0") -> 0 | E102: =ROUND(AVERAGE(Y102:FQ102),0) ->  | F102: =MIN(Y102:FQ102) -> 0 | G102: =MAX(Y102:FQ102) -> 0 | H102: =ROUND(STDEV(Y102:FQ102),0) ->  | I102: =ROUND(H102/E102,4) ->  | J102: =VLOOKUP(C102,Gewichtsentwicklung!P$6:R$568,3,FALSE) ->  | K102: =ROUND(E102/J102,4) ->  | L102: =ROUND((D102-N102)/D102,4) ->  | M102: =ROUND(COUNTIF(Y102:FQ102,"<"&J102*0.9)/D102,4) ->  | N102: =COUNTIF(Y102:FQ102,"<"&E102*0.9)+COUNTIF(Y102:FQ102,">"&E102*1.1) -> 0 | O102: =COUNTIF(Y102:FQ102,">="&ROUNDDOWN($F102,-1))-COUNTIF(Y102:FQ102,">="&ROUNDDOWN($F102,-1)+((ROUNDUP($G102,-1)-ROUNDDOWN($F102,-1))/10)) -> 0 | P102: =COUNTIF(Y102:FQ102,">="&ROUNDDOWN($F102,-1)+((ROUNDUP($G102,-1)-ROUNDDOWN($F102,-1))/10))-COUNTIF(Y102:FQ102,">="&ROUNDDOWN($F102,-1)+((ROUNDUP($G102,-1)-ROUNDDOWN($F102,-1))/10*2)) -> 0 | Q102: =COUNTIF(Y102:FQ102,">="&ROUNDDOWN($F102,-1)+((ROUNDUP($G102,-1)-ROUNDDOWN($F102,-1))/10*2))-COUNTIF(Y102:FQ102,">="&ROUNDDOWN($F102,-1)+((ROUNDUP($G102,-1)-ROUNDDOWN($F102,-1))/10*3)) -> 0 | R102: =COUNTIF(Y102:FQ102,">="&ROUNDDOWN($F102,-1)+((ROUNDUP($G102,-1)-ROUNDDOWN($F102,-1))/10*3))-COUNTIF(Y102:FQ102,">="&ROUNDDOWN($F102,-1)+((ROUNDUP($G102,-1)-ROUNDDOWN($F102,-1))/10*4)) -> 0 | S102: =COUNTIF(Y102:FQ102,">="&ROUNDDOWN($F102,-1)+((ROUNDUP($G102,-1)-ROUNDDOWN($F102,-1))/10*4))-COUNTIF(Y102:FQ102,">="&ROUNDDOWN($F102,-1)+((ROUNDUP($G102,-1)-ROUNDDOWN($F102,-1))/10*5)) -> 0 | T102: =COUNTIF(Y102:FQ102,">="&ROUNDDOWN($F102,-1)+((ROUNDUP($G102,-1)-ROUNDDOWN($F102,-1))/10*5))-COUNTIF(Y102:FQ102,">="&ROUNDDOWN($F102,-1)+((ROUNDUP($G102,-1)-ROUNDDOWN($F102,-1))/10*6)) -> 0 | U102: =COUNTIF(Y102:FQ102,">="&ROUNDDOWN($F102,-1)+((ROUNDUP($G102,-1)-ROUNDDOWN($F102,-1))/10*6))-COUNTIF(Y102:FQ102,">="&ROUNDDOWN($F102,-1)+((ROUNDUP($G102,-1)-ROUNDDOWN($F102,-1))/10*7)) -> 0 | V102: =COUNTIF(Y102:FQ102,">="&ROUNDDOWN($F102,-1)+((ROUNDUP($G102,-1)-ROUNDDOWN($F102,-1))/10*7))-COUNTIF(Y102:FQ102,">="&ROUNDDOWN($F102,-1)+((ROUNDUP($G102,-1)-ROUNDDOWN($F102,-1))/10*8)) -> 0 | W102: =COUNTIF(Y102:FQ102,">="&ROUNDDOWN($F102,-1)+((ROUNDUP($G102,-1)-ROUNDDOWN($F102,-1))/10*8))-COUNTIF(Y102:FQ102,">="&ROUNDDOWN($F102,-1)+((ROUNDUP($G102,-1)-ROUNDDOWN($F102,-1))/10*9)) -> 0 | X102: =COUNTIF(Y102:FQ102,">0"&ROUNDDOWN($F102,-1)+((ROUNDUP($G102,-1)-ROUNDDOWN($F102,-1))/10*9))-COUNTIF(Y102:FQ102,">"&ROUNDUP($G102,-1)) -> 0
B103: 0 | C103: 0 | D103: 0 | F103: 0 | G103: 0 | J103: =VLOOKUP(C103,Gewichtsentwicklung!P$6:R$568,3,FALSE) ->  | N103: 0 | O103: 0 | P103: 0 | Q103: 0 | R103: 0 | S103: 0 | T103: 0 | U103: 0 | V103: 0 | W103: 0 | X103: 0
B104: 0 | C104: 0 | D104: 0 | F104: 0 | G104: 0 | J104: =VLOOKUP(C104,Gewichtsentwicklung!P$6:R$568,3,FALSE) ->  | N104: 0 | O104: 0 | P104: 0 | Q104: 0 | R104: 0 | S104: 0 | T104: 0 | U104: 0 | V104: 0 | W104: 0 | X104: 0
B105: 0 | C105: 0 | D105: 0 | F105: 0 | G105: 0 | J105: =VLOOKUP(C105,Gewichtsentwicklung!P$6:R$568,3,FALSE) ->  | N105: 0 | O105: 0 | P105: 0 | Q105: 0 | R105: 0 | S105: 0 | T105: 0 | U105: 0 | V105: 0 | W105: 0 | X105: 0
B106: 0 | C106: 0 | D106: 0 | F106: 0 | G106: 0 | J106: =VLOOKUP(C106,Gewichtsentwicklung!P$6:R$568,3,FALSE) ->  | N106: 0 | O106: 0 | P106: 0 | Q106: 0 | R106: 0 | S106: 0 | T106: 0 | U106: 0 | V106: 0 | W106: 0 | X106: 0
B107: 0 | C107: 0 | D107: 0 | F107: 0 | G107: 0 | J107: =VLOOKUP(C107,Gewichtsentwicklung!P$6:R$568,3,FALSE) ->  | N107: 0 | O107: 0 | P107: 0 | Q107: 0 | R107: 0 | S107: 0 | T107: 0 | U107: 0 | V107: 0 | W107: 0 | X107: 0
B108: 0 | C108: 0 | D108: 0 | F108: 0 | G108: 0 | J108: =VLOOKUP(C108,Gewichtsentwicklung!P$6:R$568,3,FALSE) ->  | N108: 0 | O108: 0 | P108: 0 | Q108: 0 | R108: 0 | S108: 0 | T108: 0 | U108: 0 | V108: 0 | W108: 0 | X108: 0
B109: 0 | C109: 0 | D109: 0 | F109: 0 | G109: 0 | J109: =VLOOKUP(C109,Gewichtsentwicklung!P$6:R$568,3,FALSE) ->  | N109: 0 | O109: 0 | P109: 0 | Q109: 0 | R109: 0 | S109: 0 | T109: 0 | U109: 0 | V109: 0 | W109: 0 | X109: 0
B110: 0 | C110: 0 | D110: 0 | F110: 0 | G110: 0 | J110: =VLOOKUP(C110,Gewichtsentwicklung!P$6:R$568,3,FALSE) ->  | N110: 0 | O110: 0 | P110: 0 | Q110: 0 | R110: 0 | S110: 0 | T110: 0 | U110: 0 | V110: 0 | W110: 0 | X110: 0
B111: 0 | C111: 0 | D111: 0 | F111: 0 | G111: 0 | J111: =VLOOKUP(C111,Gewichtsentwicklung!P$6:R$568,3,FALSE) ->  | N111: 0 | O111: 0 | P111: 0 | Q111: 0 | R111: 0 | S111: 0 | T111: 0 | U111: 0 | V111: 0 | W111: 0 | X111: 0
B112: 0 | C112: 0 | D112: 0 | F112: 0 | G112: 0 | J112: =VLOOKUP(C112,Gewichtsentwicklung!P$6:R$568,3,FALSE) ->  | N112: 0 | O112: 0 | P112: 0 | Q112: 0 | R112: 0 | S112: 0 | T112: 0 | U112: 0 | V112: 0 | W112: 0 | X112: 0
B113: 0 | C113: 0 | D113: 0 | F113: 0 | G113: 0 | J113: =VLOOKUP(C113,Gewichtsentwicklung!P$6:R$568,3,FALSE) ->  | N113: 0 | O113: 0 | P113: 0 | Q113: 0 | R113: 0 | S113: 0 | T113: 0 | U113: 0 | V113: 0 | W113: 0 | X113: 0
B114: 0 | C114: 0 | D114: 0 | F114: 0 | G114: 0 | J114: =VLOOKUP(C114,Gewichtsentwicklung!P$6:R$568,3,FALSE) ->  | N114: 0 | O114: 0 | P114: 0 | Q114: 0 | R114: 0 | S114: 0 | T114: 0 | U114: 0 | V114: 0 | W114: 0 | X114: 0
B115: 0 | C115: 0 | D115: 0 | F115: 0 | G115: 0 | J115: =VLOOKUP(C115,Gewichtsentwicklung!P$6:R$568,3,FALSE) ->  | N115: 0 | O115: 0 | P115: 0 | Q115: 0 | R115: 0 | S115: 0 | T115: 0 | U115: 0 | V115: 0 | W115: 0 | X115: 0

Sheet Uniformitätsentwicklung
C2: Herden- / Tiergruppendaten:
C3: Betriebskennung: | E3: Stall / Abteil: | G3: Tieranzahl: | I3: Herkunft: | K3: Schlupfdatum:
C4: =Menü!F23 -> 0 | E4: =Menü!F24 -> 0 | G4: =Menü!H23 -> 0 | I4: =Menü!H24 -> 0 | K4: =Menü!J23 -> 00:00:00

Sheet Gewichtsentwicklung
C2: Herden- / Tiergruppendaten: | R2: 145 | T2: =MAX(Daten!C6:C115) -> 0
C3: Betriebskennung: | E3: Stall / Abteil: | G3: Tieranzahl: | I3: Herkunft: | K3: Schlupfdatum:
C4: =Menü!F23 -> 0 | E4: =Menü!F24 -> 0 | G4: =Menü!H23 -> 0 | I4: =Menü!H24 -> 0 | K4: =Menü!J23 -> 00:00:00
P6: =ROUND(Q6,1) -> 0 | Q6: 0 | R6: =VLOOKUP(Menü!H$24,Sollgewichte!A$4:CD$13,Q6+2,FALSE) ->  | S6: =R6*0.95 ->  | T6: =R6 ->  | U6: =VLOOKUP(P6,Daten!C$6:E$115,3,FALSE) ->  | V6: =VLOOKUP(P6,Daten!C$6:L$115,10,FALSE) ->  | W6: =VLOOKUP(P6,Daten!C$6:M$115,11,FALSE) ->  | X6: 0.05 | Y6: 0.1 | Z6: 0.8 | AA6: 0.85
P7: =ROUND(Q7,1) -> 0.2 | Q7: =Q6+0.2 -> 0.2 | R7: =ROUND(R6+(R13-R6)/7,0) ->  | S7: =R7*0.95 ->  | T7: =R7 ->  | U7: =VLOOKUP(P7,Daten!C$6:E$115,3,FALSE) ->  | V7: =VLOOKUP(P7,Daten!C$6:L$115,10,FALSE) ->  | W7: =VLOOKUP(P7,Daten!C$6:M$115,11,FALSE) ->  | X7: 0.05 | Y7: 0.1 | Z7: 0.8 | AA7: 0.85
P8: 0.3 | Q8: =Q7+0.1 -> 0.3 | R8: =ROUND(R6+(R13-R6)/7*2,0) ->  | U8: =VLOOKUP(P8,Daten!C$6:E$115,3,FALSE) ->  | V8: =VLOOKUP(P8,Daten!C$6:L$115,10,FALSE) ->  | W8: =VLOOKUP(P8,Daten!C$6:M$115,11,FALSE) ->  | X8: 0.05 | Y8: 0.1 | Z8: 0.8 | AA8: 0.85
P9: 0.5 | Q9: =Q8+0.2 -> 0.5 | R9: =ROUND(R6+(R13-R6)/7*3,0) ->  | U9: =VLOOKUP(P9,Daten!C$6:E$115,3,FALSE) ->  | V9: =VLOOKUP(P9,Daten!C$6:L$115,10,FALSE) ->  | W9: =VLOOKUP(P9,Daten!C$6:M$115,11,FALSE) ->  | X9: 0.05 | Y9: 0.1 | Z9: 0.8 | AA9: 0.85
P10: 0.6 | Q10: =Q9+0.1 -> 0.6 | R10: =ROUND(R6+(R13-R6)/7*4,0) ->  | U10: =VLOOKUP(P10,Daten!C$6:E$115,3,FALSE) ->  | V10: =VLOOKUP(P10,Daten!C$6:L$115,10,FALSE) ->  | W10: =VLOOKUP(P10,Daten!C$6:M$115,11,FALSE) ->  | X10: 0.05 | Y10: 0.1 | Z10: 0.8 | AA10: 0.85
P11: 0.8 | Q11: =Q10+0.2 -> 0.8 | R11: =ROUND(R6+(R13-R6)/7*5,0) ->  | U11: =VLOOKUP(P11,Daten!C$6:E$115,3,FALSE) ->  | V11: =VLOOKUP(P11,Daten!C$6:L$115,10,FALSE) ->  | W11: =VLOOKUP(P11,Daten!C$6:M$115,11,FALSE) ->  | X11: 0.05 | Y11: 0.1 | Z11: 0.8 | AA11: 0.85
P12: 0.9 | Q12: =Q11+0.1 -> 0.9 | R12: =ROUND(R6+(R13-R6)/7*6,0) ->  | U12: =VLOOKUP(P12,Daten!C$6:E$115,3,FALSE) ->  | V12: =VLOOKUP(P12,Daten!C$6:L$115,10,FALSE) ->  | W12: =VLOOKUP(P12,Daten!C$6:M$115,11,FALSE) ->  | X12: 0.05 | Y12: 0.1 | Z12: 0.8 | AA12: 0.85
P13: 1 | Q13: =Q12+0.1 -> 1 | R13: =VLOOKUP(Menü!H$24,Sollgewichte!A$4:CD$13,Q13+2,FALSE) ->  | U13: =VLOOKUP(P13,Daten!C$6:E$115,3,FALSE) ->  | V13: =VLOOKUP(P13,Daten!C$6:L$115,10,FALSE) ->  | W13: =VLOOKUP(P13,Daten!C$6:M$115,11,FALSE) ->  | X13: 0.05 | Y13: 0.1 | Z13: 0.8 | AA13: 0.85
P14: 1.2 | Q14: =Q13+0.2 -> 1.2 | R14: =ROUND(R13+(R20-R13)/7,0) ->  | U14: =VLOOKUP(P14,Daten!C$6:E$115,3,FALSE) ->  | V14: =VLOOKUP(P14,Daten!C$6:L$115,10,FALSE) ->  | W14: =VLOOKUP(P14,Daten!C$6:M$115,11,FALSE) ->  | X14: 0.05 | Y14: 0.1 | Z14: 0.8 | AA14: 0.85
P15: 1.3 | Q15: =Q14+0.1 -> 1.3 | R15: =ROUND(R13+(R20-R13)/7*2,0) ->  | U15: =VLOOKUP(P15,Daten!C$6:E$115,3,FALSE) ->  | V15: =VLOOKUP(P15,Daten!C$6:L$115,10,FALSE) ->  | W15: =VLOOKUP(P15,Daten!C$6:M$115,11,FALSE) ->  | X15: 0.05 | Y15: 0.1 | Z15: 0.8 | AA15: 0.85
P16: 1.5 | Q16: =Q15+0.2 -> 1.5 | R16: =ROUND(R13+(R20-R13)/7*3,0) ->  | U16: =VLOOKUP(P16,Daten!C$6:E$115,3,FALSE) ->  | V16: =VLOOKUP(P16,Daten!C$6:L$115,10,FALSE) ->  | W16: =VLOOKUP(P16,Daten!C$6:M$115,11,FALSE) ->  | X16: 0.05 | Y16: 0.1 | Z16: 0.8 | AA16: 0.85
P17: 1.6 | Q17: =Q16+0.1 -> 1.6 | R17: =ROUND(R13+(R20-R13)/7*4,0) ->  | U17: =VLOOKUP(P17,Daten!C$6:E$115,3,FALSE) ->  | V17: =VLOOKUP(P17,Daten!C$6:L$115,10,FALSE) ->  | W17: =VLOOKUP(P17,Daten!C$6:M$115,11,FALSE) ->  | X17: 0.05 | Y17: 0.1 | Z17: 0.8 | AA17: 0.85
P18: 1.8 | Q18: =Q17+0.2 -> 1.8 | R18: =ROUND(R13+(R20-R13)/7*5,0) ->  | U18: =VLOOKUP(P18,Daten!C$6:E$115,3,FALSE) ->  | V18: =VLOOKUP(P18,Daten!C$6:L$115,10,FALSE) ->  | W18: =VLOOKUP(P18,Daten!C$6:M$115,11,FALSE) ->  | X18: 0.05 | Y18: 0.1 | Z18: 0.8 | AA18: 0.85
P19: 1.9 | Q19: =Q18+0.1 -> 1.9 | R19: =ROUND(R13+(R20-R13)/7*6,0) ->  | U19: =VLOOKUP(P19,Daten!C$6:E$115,3,FALSE) ->  | V19: =VLOOKUP(P19,Daten!C$6:L$115,10,FALSE) ->  | W19: =VLOOKUP(P19,Daten!C$6:M$115,11,FALSE) ->  | X19: 0.05 | Y19: 0.1 | Z19: 0.8 | AA19: 0.85
P20: 2 | Q20: =Q19+0.1 -> 2 | R20: =VLOOKUP(Menü!H$24,Sollgewichte!A$4:CD$13,Q20+2,FALSE) ->  | U20: =VLOOKUP(P20,Daten!C$6:E$115,3,FALSE) ->  | V20: =VLOOKUP(P20,Daten!C$6:L$115,10,FALSE) ->  | W20: =VLOOKUP(P20,Daten!C$6:M$115,11,FALSE) ->  | X20: 0.05 | Y20: 0.1 | Z20: 0.8 | AA20: 0.85
P21: 2.2 | Q21: =Q20+0.2 -> 2.2 | R21: =ROUND(R20+(R27-R20)/7,0) ->  | U21: =VLOOKUP(P21,Daten!C$6:E$115,3,FALSE) ->  | V21: =VLOOKUP(P21,Daten!C$6:L$115,10,FALSE) ->  | W21: =VLOOKUP(P21,Daten!C$6:M$115,11,FALSE) ->  | X21: 0.05 | Y21: 0.1 | Z21: 0.8 | AA21: 0.85
P22: 2.3 | Q22: =Q21+0.1 -> 2.3 | R22: =ROUND(R20+(R27-R20)/7*2,0) ->  | U22: =VLOOKUP(P22,Daten!C$6:E$115,3,FALSE) ->  | V22: =VLOOKUP(P22,Daten!C$6:L$115,10,FALSE) ->  | W22: =VLOOKUP(P22,Daten!C$6:M$115,11,FALSE) ->  | X22: 0.05 | Y22: 0.1 | Z22: 0.8 | AA22: 0.85
B23: .ab 1. Woche | D23: bis 20. Woche | G23: bis 40.Woche | J23: bis 60. Woche | M23: bis 80. Woche | P23: 2.5 | Q23: =Q22+0.2 -> 2.5 | R23: =ROUND(R20+(R27-R20)/7*3,0) ->  | U23: =VLOOKUP(P23,Daten!C$6:E$115,3,FALSE) ->  | V23: =VLOOKUP(P23,Daten!C$6:L$115,10,FALSE) ->  | W23: =VLOOKUP(P23,Daten!C$6:M$115,11,FALSE) ->  | X23: 0.05 | Y23: 0.1 | Z23: 0.8 | AA23: 0.85
P24: 2.6 | Q24: =Q23+0.1 -> 2.6 | R24: =ROUND(R20+(R27-R20)/7*4,0) ->  | U24: =VLOOKUP(P24,Daten!C$6:E$115,3,FALSE) ->  | V24: =VLOOKUP(P24,Daten!C$6:L$115,10,FALSE) ->  | W24: =VLOOKUP(P24,Daten!C$6:M$115,11,FALSE) ->  | X24: 0.05 | Y24: 0.1 | Z24: 0.8 | AA24: 0.85
P25: 2.8 | Q25: =Q24+0.2 -> 2.8 | R25: =ROUND(R20+(R27-R20)/7*5,0) ->  | U25: =VLOOKUP(P25,Daten!C$6:E$115,3,FALSE) ->  | V25: =VLOOKUP(P25,Daten!C$6:L$115,10,FALSE) ->  | W25: =VLOOKUP(P25,Daten!C$6:M$115,11,FALSE) ->  | X25: 0.05 | Y25: 0.1 | Z25: 0.8 | AA25: 0.85
P26: 2.9 | Q26: =Q25+0.1 -> 2.9 | R26: =ROUND(R20+(R27-R20)/7*6,0) ->  | U26: =VLOOKUP(P26,Daten!C$6:E$115,3,FALSE) ->  | V26: =VLOOKUP(P26,Daten!C$6:L$115,10,FALSE) ->  | W26: =VLOOKUP(P26,Daten!C$6:M$115,11,FALSE) ->  | X26: 0.05 | Y26: 0.1 | Z26: 0.8 | AA26: 0.85
P27: 3 | Q27: =Q26+0.1 -> 3 | R27: =VLOOKUP(Menü!H$24,Sollgewichte!A$4:CD$13,Q27+2,FALSE) ->  | U27: =VLOOKUP(P27,Daten!C$6:E$115,3,FALSE) ->  | V27: =VLOOKUP(P27,Daten!C$6:L$115,10,FALSE) ->  | W27: =VLOOKUP(P27,Daten!C$6:M$115,11,FALSE) ->  | X27: 0.05 | Y27: 0.1 | Z27: 0.8 | AA27: 0.85
P28: 3.2 | Q28: =Q27+0.2 -> 3.2 | R28: =ROUND(R27+(R34-R27)/7,0) ->  | U28: =VLOOKUP(P28,Daten!C$6:E$115,3,FALSE) ->  | V28: =VLOOKUP(P28,Daten!C$6:L$115,10,FALSE) ->  | W28: =VLOOKUP(P28,Daten!C$6:M$115,11,FALSE) ->  | X28: 0.05 | Y28: 0.1 | Z28: 0.8 | AA28: 0.85
P29: 3.3 | Q29: =Q28+0.1 -> 3.3 | R29: =ROUND(R27+(R34-R27)/7*2,0) ->  | U29: =VLOOKUP(P29,Daten!C$6:E$115,3,FALSE) ->  | V29: =VLOOKUP(P29,Daten!C$6:L$115,10,FALSE) ->  | W29: =VLOOKUP(P29,Daten!C$6:M$115,11,FALSE) ->  | X29: 0.05 | Y29: 0.1 | Z29: 0.8 | AA29: 0.85
P30: 3.5 | Q30: =Q29+0.2 -> 3.5 | R30: =ROUND(R27+(R34-R27)/7*3,0) ->  | U30: =VLOOKUP(P30,Daten!C$6:E$115,3,FALSE) ->  | V30: =VLOOKUP(P30,Daten!C$6:L$115,10,FALSE) ->  | W30: =VLOOKUP(P30,Daten!C$6:M$115,11,FALSE) ->  | X30: 0.05 | Y30: 0.1 | Z30: 0.8 | AA30: 0.85
P31: 3.6 | Q31: =Q30+0.1 -> 3.6 | R31: =ROUND(R27+(R34-R27)/7*4,0) ->  | U31: =VLOOKUP(P31,Daten!C$6:E$115,3,FALSE) ->  | V31: =VLOOKUP(P31,Daten!C$6:L$115,10,FALSE) ->  | W31: =VLOOKUP(P31,Daten!C$6:M$115,11,FALSE) ->  | X31: 0.05 | Y31: 0.1 | Z31: 0.8 | AA31: 0.85
P32: 3.8 | Q32: =Q31+0.2 -> 3.8 | R32: =ROUND(R27+(R34-R27)/7*5,0) ->  | U32: =VLOOKUP(P32,Daten!C$6:E$115,3,FALSE) ->  | V32: =VLOOKUP(P32,Daten!C$6:L$115,10,FALSE) ->  | W32: =VLOOKUP(P32,Daten!C$6:M$115,11,FALSE) ->  | X32: 0.05 | Y32: 0.1 | Z32: 0.8 | AA32: 0.85
P33: 3.9 | Q33: =Q32+0.1 -> 3.9 | R33: =ROUND(R27+(R34-R27)/7*6,0) ->  | U33: =VLOOKUP(P33,Daten!C$6:E$115,3,FALSE) ->  | V33: =VLOOKUP(P33,Daten!C$6:L$115,10,FALSE) ->  | W33: =VLOOKUP(P33,Daten!C$6:M$115,11,FALSE) ->  | X33: 0.05 | Y33: 0.1 | Z33: 0.8 | AA33: 0.85
P34: 4 | Q34: =Q33+0.1 -> 4 | R34: =VLOOKUP(Menü!H$24,Sollgewichte!A$4:CD$13,Q34+2,FALSE) ->  | U34: =VLOOKUP(P34,Daten!C$6:E$115,3,FALSE) ->  | V34: =VLOOKUP(P34,Daten!C$6:L$115,10,FALSE) ->  | W34: =VLOOKUP(P34,Daten!C$6:M$115,11,FALSE) ->  | X34: 0.05 | Y34: 0.1 | Z34: 0.8 | AA34: 0.85
P35: 4.2 | Q35: =Q34+0.2 -> 4.2 | R35: =ROUND(R34+(R41-R34)/7,0) ->  | U35: =VLOOKUP(P35,Daten!C$6:E$115,3,FALSE) ->  | V35: =VLOOKUP(P35,Daten!C$6:L$115,10,FALSE) ->  | W35: =VLOOKUP(P35,Daten!C$6:M$115,11,FALSE) ->  | X35: 0.05 | Y35: 0.1 | Z35: 0.8 | AA35: 0.85
P36: 4.3 | Q36: =Q35+0.1 -> 4.3 | R36: =ROUND(R34+(R41-R34)/7*2,0) ->  | U36: =VLOOKUP(P36,Daten!C$6:E$115,3,FALSE) ->  | V36: =VLOOKUP(P36,Daten!C$6:L$115,10,FALSE) ->  | W36: =VLOOKUP(P36,Daten!C$6:M$115,11,FALSE) ->  | X36: 0.05 | Y36: 0.1 | Z36: 0.8 | AA36: 0.85
P37: 4.5 | Q37: =Q36+0.2 -> 4.5 | R37: =ROUND(R34+(R41-R34)/7*3,0) ->  | U37: =VLOOKUP(P37,Daten!C$6:E$115,3,FALSE) ->  | V37: =VLOOKUP(P37,Daten!C$6:L$115,10,FALSE) ->  | W37: =VLOOKUP(P37,Daten!C$6:M$115,11,FALSE) ->  | X37: 0.05 | Y37: 0.1 | Z37: 0.8 | AA37: 0.85
P38: 4.6 | Q38: =Q37+0.1 -> 4.6 | R38: =ROUND(R34+(R41-R34)/7*4,0) ->  | U38: =VLOOKUP(P38,Daten!C$6:E$115,3,FALSE) ->  | V38: =VLOOKUP(P38,Daten!C$6:L$115,10,FALSE) ->  | W38: =VLOOKUP(P38,Daten!C$6:M$115,11,FALSE) ->  | X38: 0.05 | Y38: 0.1 | Z38: 0.8 | AA38: 0.85
P39: 4.8 | Q39: =Q38+0.2 -> 4.8 | R39: =ROUND(R34+(R41-R34)/7*5,0) ->  | U39: =VLOOKUP(P39,Daten!C$6:E$115,3,FALSE) ->  | V39: =VLOOKUP(P39,Daten!C$6:L$115,10,FALSE) ->  | W39: =VLOOKUP(P39,Daten!C$6:M$115,11,FALSE) ->  | X39: 0.05 | Y39: 0.1 | Z39: 0.8 | AA39: 0.85
P40: 4.9 | Q40: =Q39+0.1 -> 4.9 | R40: =ROUND(R34+(R41-R34)/7*6,0) ->  | U40: =VLOOKUP(P40,Daten!C$6:E$115,3,FALSE) ->  | V40: =VLOOKUP(P40,Daten!C$6:L$115,10,FALSE) ->  | W40: =VLOOKUP(P40,Daten!C$6:M$115,11,FALSE) ->  | X40: 0.05 | Y40: 0.1 | Z40: 0.8 | AA40: 0.85
P41: 5 | Q41: =Q40+0.1 -> 5 | R41: =VLOOKUP(Menü!H$24,Sollgewichte!A$4:CD$13,Q41+2,FALSE) ->  | U41: =VLOOKUP(P41,Daten!C$6:E$115,3,FALSE) ->  | V41: =VLOOKUP(P41,Daten!C$6:L$115,10,FALSE) ->  | W41: =VLOOKUP(P41,Daten!C$6:M$115,11,FALSE) ->  | X41: 0.05 | Y41: 0.1 | Z41: 0.8 | AA41: 0.85
P42: 5.2 | Q42: =Q41+0.2 -> 5.2 | R42: =ROUND(R41+(R48-R41)/7,0) ->  | U42: =VLOOKUP(P42,Daten!C$6:E$115,3,FALSE) ->  | V42: =VLOOKUP(P42,Daten!C$6:L$115,10,FALSE) ->  | W42: =VLOOKUP(P42,Daten!C$6:M$115,11,FALSE) ->  | X42: 0.05 | Y42: 0.1 | Z42: 0.8 | AA42: 0.85
P43: 5.3 | Q43: =Q42+0.1 -> 5.3 | R43: =ROUND(R41+(R48-R41)/7*2,0) ->  | U43: =VLOOKUP(P43,Daten!C$6:E$115,3,FALSE) ->  | V43: =VLOOKUP(P43,Daten!C$6:L$115,10,FALSE) ->  | W43: =VLOOKUP(P43,Daten!C$6:M$115,11,FALSE) ->  | X43: 0.05 | Y43: 0.1 | Z43: 0.8 | AA43: 0.85
P44: 5.5 | Q44: =Q43+0.2 -> 5.5 | R44: =ROUND(R41+(R48-R41)/7*3,0) ->  | U44: =VLOOKUP(P44,Daten!C$6:E$115,3,FALSE) ->  | V44: =VLOOKUP(P44,Daten!C$6:L$115,10,FALSE) ->  | W44: =VLOOKUP(P44,Daten!C$6:M$115,11,FALSE) ->  | X44: 0.05 | Y44: 0.1 | Z44: 0.8 | AA44: 0.85
P45: 5.6 | Q45: =Q44+0.1 -> 5.6 | R45: =ROUND(R41+(R48-R41)/7*4,0) ->  | U45: =VLOOKUP(P45,Daten!C$6:E$115,3,FALSE) ->  | V45: =VLOOKUP(P45,Daten!C$6:L$115,10,FALSE) ->  | W45: =VLOOKUP(P45,Daten!C$6:M$115,11,FALSE) ->  | X45: 0.05 | Y45: 0.1 | Z45: 0.8 | AA45: 0.85
P46: 5.8 | Q46: =Q45+0.2 -> 5.8 | R46: =ROUND(R41+(R48-R41)/7*5,0) ->  | U46: =VLOOKUP(P46,Daten!C$6:E$115,3,FALSE) ->  | V46: =VLOOKUP(P46,Daten!C$6:L$115,10,FALSE) ->  | W46: =VLOOKUP(P46,Daten!C$6:M$115,11,FALSE) ->  | X46: 0.05 | Y46: 0.1 | Z46: 0.8 | AA46: 0.85
P47: 5.9 | Q47: =Q46+0.1 -> 5.9 | R47: =ROUND(R41+(R48-R41)/7*6,0) ->  | U47: =VLOOKUP(P47,Daten!C$6:E$115,3,FALSE) ->  | V47: =VLOOKUP(P47,Daten!C$6:L$115,10,FALSE) ->  | W47: =VLOOKUP(P47,Daten!C$6:M$115,11,FALSE) ->  | X47: 0.05 | Y47: 0.1 | Z47: 0.8 | AA47: 0.85
P48: 6 | Q48: =Q47+0.1 -> 6 | R48: =VLOOKUP(Menü!H$24,Sollgewichte!A$4:CD$13,Q48+2,FALSE) ->  | U48: =VLOOKUP(P48,Daten!C$6:E$115,3,FALSE) ->  | V48: =VLOOKUP(P48,Daten!C$6:L$115,10,FALSE) ->  | W48: =VLOOKUP(P48,Daten!C$6:M$115,11,FALSE) ->  | X48: 0.05 | Y48: 0.1 | Z48: 0.8 | AA48: 0.85
P49: 6.2 | Q49: =Q48+0.2 -> 6.2 | R49: =ROUND(R48+(R55-R48)/7,0) ->  | U49: =VLOOKUP(P49,Daten!C$6:E$115,3,FALSE) ->  | V49: =VLOOKUP(P49,Daten!C$6:L$115,10,FALSE) ->  | W49: =VLOOKUP(P49,Daten!C$6:M$115,11,FALSE) ->  | X49: 0.05 | Y49: 0.1 | Z49: 0.8 | AA49: 0.85
P50: 6.3 | Q50: =Q49+0.1 -> 6.3 | R50: =ROUND(R48+(R55-R48)/7*2,0) ->  | U50: =VLOOKUP(P50,Daten!C$6:E$115,3,FALSE) ->  | V50: =VLOOKUP(P50,Daten!C$6:L$115,10,FALSE) ->  | W50: =VLOOKUP(P50,Daten!C$6:M$115,11,FALSE) ->  | X50: 0.05 | Y50: 0.1 | Z50: 0.8 | AA50: 0.85
P51: 6.5 | Q51: =Q50+0.2 -> 6.5 | R51: =ROUND(R48+(R55-R48)/7*3,0) ->  | U51: =VLOOKUP(P51,Daten!C$6:E$115,3,FALSE) ->  | V51: =VLOOKUP(P51,Daten!C$6:L$115,10,FALSE) ->  | W51: =VLOOKUP(P51,Daten!C$6:M$115,11,FALSE) ->  | X51: 0.05 | Y51: 0.1 | Z51: 0.8 | AA51: 0.85
P52: 6.6 | Q52: =Q51+0.1 -> 6.6 | R52: =ROUND(R48+(R55-R48)/7*4,0) ->  | U52: =VLOOKUP(P52,Daten!C$6:E$115,3,FALSE) ->  | V52: =VLOOKUP(P52,Daten!C$6:L$115,10,FALSE) ->  | W52: =VLOOKUP(P52,Daten!C$6:M$115,11,FALSE) ->  | X52: 0.05 | Y52: 0.1 | Z52: 0.8 | AA52: 0.85
P53: 6.8 | Q53: =Q52+0.2 -> 6.8 | R53: =ROUND(R48+(R55-R48)/7*5,0) ->  | U53: =VLOOKUP(P53,Daten!C$6:E$115,3,FALSE) ->  | V53: =VLOOKUP(P53,Daten!C$6:L$115,10,FALSE) ->  | W53: =VLOOKUP(P53,Daten!C$6:M$115,11,FALSE) ->  | X53: 0.05 | Y53: 0.1 | Z53: 0.8 | AA53: 0.85
P54: 6.9 | Q54: =Q53+0.1 -> 6.9 | R54: =ROUND(R48+(R55-R48)/7*6,0) ->  | U54: =VLOOKUP(P54,Daten!C$6:E$115,3,FALSE) ->  | V54: =VLOOKUP(P54,Daten!C$6:L$115,10,FALSE) ->  | W54: =VLOOKUP(P54,Daten!C$6:M$115,11,FALSE) ->  | X54: 0.05 | Y54: 0.1 | Z54: 0.8 | AA54: 0.85
P55: 7 | Q55: =Q54+0.1 -> 7 | R55: =VLOOKUP(Menü!H$24,Sollgewichte!A$4:CD$13,Q55+2,FALSE) ->  | U55: =VLOOKUP(P55,Daten!C$6:E$115,3,FALSE) ->  | V55: =VLOOKUP(P55,Daten!C$6:L$115,10,FALSE) ->  | W55: =VLOOKUP(P55,Daten!C$6:M$115,11,FALSE) ->  | X55: 0.05 | Y55: 0.1 | Z55: 0.8 | AA55: 0.85
P56: 7.2 | Q56: =Q55+0.2 -> 7.2 | R56: =ROUND(R55+(R62-R55)/7,0) ->  | U56: =VLOOKUP(P56,Daten!C$6:E$115,3,FALSE) ->  | V56: =VLOOKUP(P56,Daten!C$6:L$115,10,FALSE) ->  | W56: =VLOOKUP(P56,Daten!C$6:M$115,11,FALSE) ->  | X56: 0.05 | Y56: 0.1 | Z56: 0.8 | AA56: 0.85
P57: 7.3 | Q57: =Q56+0.1 -> 7.3 | R57: =ROUND(R55+(R62-R55)/7*2,0) ->  | U57: =VLOOKUP(P57,Daten!C$6:E$115,3,FALSE) ->  | V57: =VLOOKUP(P57,Daten!C$6:L$115,10,FALSE) ->  | W57: =VLOOKUP(P57,Daten!C$6:M$115,11,FALSE) ->  | X57: 0.05 | Y57: 0.1 | Z57: 0.8 | AA57: 0.85
P58: 7.5 | Q58: =Q57+0.2 -> 7.5 | R58: =ROUND(R55+(R62-R55)/7*3,0) ->  | U58: =VLOOKUP(P58,Daten!C$6:E$115,3,FALSE) ->  | V58: =VLOOKUP(P58,Daten!C$6:L$115,10,FALSE) ->  | W58: =VLOOKUP(P58,Daten!C$6:M$115,11,FALSE) ->  | X58: 0.05 | Y58: 0.1 | Z58: 0.8 | AA58: 0.85
P59: 7.6 | Q59: =Q58+0.1 -> 7.6 | R59: =ROUND(R55+(R62-R55)/7*4,0) ->  | U59: =VLOOKUP(P59,Daten!C$6:E$115,3,FALSE) ->  | V59: =VLOOKUP(P59,Daten!C$6:L$115,10,FALSE) ->  | W59: =VLOOKUP(P59,Daten!C$6:M$115,11,FALSE) ->  | X59: 0.05 | Y59: 0.1 | Z59: 0.8 | AA59: 0.85
P60: 7.8 | Q60: =Q59+0.2 -> 7.8 | R60: =ROUND(R55+(R62-R55)/7*5,0) ->  | U60: =VLOOKUP(P60,Daten!C$6:E$115,3,FALSE) ->  | V60: =VLOOKUP(P60,Daten!C$6:L$115,10,FALSE) ->  | W60: =VLOOKUP(P60,Daten!C$6:M$115,11,FALSE) ->  | X60: 0.05 | Y60: 0.1 | Z60: 0.8 | AA60: 0.85
P61: 7.9 | Q61: =Q60+0.1 -> 7.9 | R61: =ROUND(R55+(R62-R55)/7*6,0) ->  | U61: =VLOOKUP(P61,Daten!C$6:E$115,3,FALSE) ->  | V61: =VLOOKUP(P61,Daten!C$6:L$115,10,FALSE) ->  | W61: =VLOOKUP(P61,Daten!C$6:M$115,11,FALSE) ->  | X61: 0.05 | Y61: 0.1 | Z61: 0.8 | AA61: 0.85
P62: 8 | Q62: =Q61+0.1 -> 8 | R62: =VLOOKUP(Menü!H$24,Sollgewichte!A$4:CD$13,Q62+2,FALSE) ->  | U62: =VLOOKUP(P62,Daten!C$6:E$115,3,FALSE) ->  | V62: =VLOOKUP(P62,Daten!C$6:L$115,10,FALSE) ->  | W62: =VLOOKUP(P62,Daten!C$6:M$115,11,FALSE) ->  | X62: 0.05 | Y62: 0.1 | Z62: 0.8 | AA62: 0.85
P63: 8.2 | Q63: =Q62+0.2 -> 8.2 | R63: =ROUND(R62+(R69-R62)/7,0) ->  | U63: =VLOOKUP(P63,Daten!C$6:E$115,3,FALSE) ->  | V63: =VLOOKUP(P63,Daten!C$6:L$115,10,FALSE) ->  | W63: =VLOOKUP(P63,Daten!C$6:M$115,11,FALSE) ->  | X63: 0.05 | Y63: 0.1 | Z63: 0.8 | AA63: 0.85
P64: 8.3 | Q64: =Q63+0.1 -> 8.3 | R64: =ROUND(R62+(R69-R62)/7*2,0) ->  | U64: =VLOOKUP(P64,Daten!C$6:E$115,3,FALSE) ->  | V64: =VLOOKUP(P64,Daten!C$6:L$115,10,FALSE) ->  | W64: =VLOOKUP(P64,Daten!C$6:M$115,11,FALSE) ->  | X64: 0.05 | Y64: 0.1 | Z64: 0.8 | AA64: 0.85
P65: 8.5 | Q65: =Q64+0.2 -> 8.5 | R65: =ROUND(R62+(R69-R62)/7*3,0) ->  | U65: =VLOOKUP(P65,Daten!C$6:E$115,3,FALSE) ->  | V65: =VLOOKUP(P65,Daten!C$6:L$115,10,FALSE) ->  | W65: =VLOOKUP(P65,Daten!C$6:M$115,11,FALSE) ->  | X65: 0.05 | Y65: 0.1 | Z65: 0.8 | AA65: 0.85
P66: 8.6 | Q66: =Q65+0.1 -> 8.6 | R66: =ROUND(R62+(R69-R62)/7*4,0) ->  | U66: =VLOOKUP(P66,Daten!C$6:E$115,3,FALSE) ->  | V66: =VLOOKUP(P66,Daten!C$6:L$115,10,FALSE) ->  | W66: =VLOOKUP(P66,Daten!C$6:M$115,11,FALSE) ->  | X66: 0.05 | Y66: 0.1 | Z66: 0.8 | AA66: 0.85
P67: 8.8 | Q67: =Q66+0.2 -> 8.8 | R67: =ROUND(R62+(R69-R62)/7*5,0) ->  | U67: =VLOOKUP(P67,Daten!C$6:E$115,3,FALSE) ->  | V67: =VLOOKUP(P67,Daten!C$6:L$115,10,FALSE) ->  | W67: =VLOOKUP(P67,Daten!C$6:M$115,11,FALSE) ->  | X67: 0.05 | Y67: 0.1 | Z67: 0.8 | AA67: 0.85
P68: 8.9 | Q68: =Q67+0.1 -> 8.9 | R68: =ROUND(R62+(R69-R62)/7*6,0) ->  | U68: =VLOOKUP(P68,Daten!C$6:E$115,3,FALSE) ->  | V68: =VLOOKUP(P68,Daten!C$6:L$115,10,FALSE) ->  | W68: =VLOOKUP(P68,Daten!C$6:M$115,11,FALSE) ->  | X68: 0.05 | Y68: 0.1 | Z68: 0.8 | AA68: 0.85
P69: 9 | Q69: =Q68+0.1 -> 9 | R69: =VLOOKUP(Menü!H$24,Sollgewichte!A$4:CD$13,Q69+2,FALSE) ->  | U69: =VLOOKUP(P69,Daten!C$6:E$115,3,FALSE) ->  | V69: =VLOOKUP(P69,Daten!C$6:L$115,10,FALSE) ->  | W69: =VLOOKUP(P69,Daten!C$6:M$115,11,FALSE) ->  | X69: 0.05 | Y69: 0.1 | Z69: 0.8 | AA69: 0.85
P70: 9.2 | Q70: =Q69+0.2 -> 9.2 | R70: =ROUND(R69+(R76-R69)/7,0) ->  | U70: =VLOOKUP(P70,Daten!C$6:E$115,3,FALSE) ->  | V70: =VLOOKUP(P70,Daten!C$6:L$115,10,FALSE) ->  | W70: =VLOOKUP(P70,Daten!C$6:M$115,11,FALSE) ->  | X70: 0.05 | Y70: 0.1 | Z70: 0.8 | AA70: 0.85
P71: =ROUND(Q71,1) -> 9.3 | Q71: =Q70+0.1 -> 9.3 | R71: =ROUND(R69+(R76-R69)/7*2,0) ->  | S71: =R71*0.95 ->  | T71: =R71 ->  | U71: =VLOOKUP(P71,Daten!C$6:E$115,3,FALSE) ->  | V71: =VLOOKUP(P71,Daten!C$6:L$115,10,FALSE) ->  | W71: =VLOOKUP(P71,Daten!C$6:M$115,11,FALSE) ->  | X71: 0.05 | Y71: 0.1 | Z71: 0.8 | AA71: 0.85
P72: 9.5 | Q72: =Q71+0.2 -> 9.5 | R72: =ROUND(R69+(R76-R69)/7*3,0) ->  | U72: =VLOOKUP(P72,Daten!C$6:E$115,3,FALSE) ->  | V72: =VLOOKUP(P72,Daten!C$6:L$115,10,FALSE) ->  | W72: =VLOOKUP(P72,Daten!C$6:M$115,11,FALSE) ->  | X72: 0.05 | Y72: 0.1 | Z72: 0.8 | AA72: 0.85
P73: 9.6 | Q73: =Q72+0.1 -> 9.6 | R73: =ROUND(R69+(R76-R69)/7*4,0) ->  | U73: =VLOOKUP(P73,Daten!C$6:E$115,3,FALSE) ->  | V73: =VLOOKUP(P73,Daten!C$6:L$115,10,FALSE) ->  | W73: =VLOOKUP(P73,Daten!C$6:M$115,11,FALSE) ->  | X73: 0.05 | Y73: 0.1 | Z73: 0.8 | AA73: 0.85
P74: 9.8 | Q74: =Q73+0.2 -> 9.8 | R74: =ROUND(R69+(R76-R69)/7*5,0) ->  | U74: =VLOOKUP(P74,Daten!C$6:E$115,3,FALSE) ->  | V74: =VLOOKUP(P74,Daten!C$6:L$115,10,FALSE) ->  | W74: =VLOOKUP(P74,Daten!C$6:M$115,11,FALSE) ->  | X74: 0.05 | Y74: 0.1 | Z74: 0.8 | AA74: 0.85
P75: 9.9 | Q75: =Q74+0.1 -> 9.9 | R75: =ROUND(R69+(R76-R69)/7*6,0) ->  | U75: =VLOOKUP(P75,Daten!C$6:E$115,3,FALSE) ->  | V75: =VLOOKUP(P75,Daten!C$6:L$115,10,FALSE) ->  | W75: =VLOOKUP(P75,Daten!C$6:M$115,11,FALSE) ->  | X75: 0.05 | Y75: 0.1 | Z75: 0.8 | AA75: 0.85
P76: 10 | Q76: =Q75+0.1 -> 10 | R76: =VLOOKUP(Menü!H$24,Sollgewichte!A$4:CD$13,Q76+2,FALSE) ->  | U76: =VLOOKUP(P76,Daten!C$6:E$115,3,FALSE) ->  | V76: =VLOOKUP(P76,Daten!C$6:L$115,10,FALSE) ->  | W76: =VLOOKUP(P76,Daten!C$6:M$115,11,FALSE) ->  | X76: 0.05 | Y76: 0.1 | Z76: 0.8 | AA76: 0.85
P77: 10.2 | Q77: =Q76+0.2 -> 10.2 | R77: =ROUND(R76+(R83-R76)/7,0) ->  | U77: =VLOOKUP(P77,Daten!C$6:E$115,3,FALSE) ->  | V77: =VLOOKUP(P77,Daten!C$6:L$115,10,FALSE) ->  | W77: =VLOOKUP(P77,Daten!C$6:M$115,11,FALSE) ->  | X77: 0.05 | Y77: 0.1 | Z77: 0.8 | AA77: 0.85
P78: 10.3 | Q78: =Q77+0.1 -> 10.3 | R78: =ROUND(R76+(R83-R76)/7*2,0) ->  | U78: =VLOOKUP(P78,Daten!C$6:E$115,3,FALSE) ->  | V78: =VLOOKUP(P78,Daten!C$6:L$115,10,FALSE) ->  | W78: =VLOOKUP(P78,Daten!C$6:M$115,11,FALSE) ->  | X78: 0.05 | Y78: 0.1 | Z78: 0.8 | AA78: 0.85
P79: 10.5 | Q79: =Q78+0.2 -> 10.5 | R79: =ROUND(R76+(R83-R76)/7*3,0) ->  | U79: =VLOOKUP(P79,Daten!C$6:E$115,3,FALSE) ->  | V79: =VLOOKUP(P79,Daten!C$6:L$115,10,FALSE) ->  | W79: =VLOOKUP(P79,Daten!C$6:M$115,11,FALSE) ->  | X79: 0.05 | Y79: 0.1 | Z79: 0.8 | AA79: 0.85
P80: 10.6 | Q80: =Q79+0.1 -> 10.6 | R80: =ROUND(R76+(R83-R76)/7*4,0) ->  | U80: =VLOOKUP(P80,Daten!C$6:E$115,3,FALSE) ->  | V80: =VLOOKUP(P80,Daten!C$6:L$115,10,FALSE) ->  | W80: =VLOOKUP(P80,Daten!C$6:M$115,11,FALSE) ->  | X80: 0.05 | Y80: 0.1 | Z80: 0.8 | AA80: 0.85
P81: 10.8 | Q81: =Q80+0.2 -> 10.8 | R81: =ROUND(R76+(R83-R76)/7*5,0) ->  | U81: =VLOOKUP(P81,Daten!C$6:E$115,3,FALSE) ->  | V81: =VLOOKUP(P81,Daten!C$6:L$115,10,FALSE) ->  | W81: =VLOOKUP(P81,Daten!C$6:M$115,11,FALSE) ->  | X81: 0.05 | Y81: 0.1 | Z81: 0.8 | AA81: 0.85
P82: 10.9 | Q82: =Q81+0.1 -> 10.9 | R82: =ROUND(R76+(R83-R76)/7*6,0) ->  | U82: =VLOOKUP(P82,Daten!C$6:E$115,3,FALSE) ->  | V82: =VLOOKUP(P82,Daten!C$6:L$115,10,FALSE) ->  | W82: =VLOOKUP(P82,Daten!C$6:M$115,11,FALSE) ->  | X82: 0.05 | Y82: 0.1 | Z82: 0.8 | AA82: 0.85
P83: 11 | Q83: =Q82+0.1 -> 11 | R83: =VLOOKUP(Menü!H$24,Sollgewichte!A$4:CD$13,Q83+2,FALSE) ->  | U83: =VLOOKUP(P83,Daten!C$6:E$115,3,FALSE) ->  | V83: =VLOOKUP(P83,Daten!C$6:L$115,10,FALSE) ->  | W83: =VLOOKUP(P83,Daten!C$6:M$115,11,FALSE) ->  | X83: 0.05 | Y83: 0.1 | Z83: 0.8 | AA83: 0.85
P84: 11.2 | Q84: =Q83+0.2 -> 11.2 | R84: =ROUND(R83+(R90-R83)/7,0) ->  | U84: =VLOOKUP(P84,Daten!C$6:E$115,3,FALSE) ->  | V84: =VLOOKUP(P84,Daten!C$6:L$115,10,FALSE) ->  | W84: =VLOOKUP(P84,Daten!C$6:M$115,11,FALSE) ->  | X84: 0.05 | Y84: 0.1 | Z84: 0.8 | AA84: 0.85
P85: 11.3 | Q85: =Q84+0.1 -> 11.3 | R85: =ROUND(R83+(R90-R83)/7*2,0) ->  | U85: =VLOOKUP(P85,Daten!C$6:E$115,3,FALSE) ->  | V85: =VLOOKUP(P85,Daten!C$6:L$115,10,FALSE) ->  | W85: =VLOOKUP(P85,Daten!C$6:M$115,11,FALSE) ->  | X85: 0.05 | Y85: 0.1 | Z85: 0.8 | AA85: 0.85
P86: 11.5 | Q86: =Q85+0.2 -> 11.5 | R86: =ROUND(R83+(R90-R83)/7*3,0) ->  | U86: =VLOOKUP(P86,Daten!C$6:E$115,3,FALSE) ->  | V86: =VLOOKUP(P86,Daten!C$6:L$115,10,FALSE) ->  | W86: =VLOOKUP(P86,Daten!C$6:M$115,11,FALSE) ->  | X86: 0.05 | Y86: 0.1 | Z86: 0.8 | AA86: 0.85
P87: 11.6 | Q87: =Q86+0.1 -> 11.6 | R87: =ROUND(R83+(R90-R83)/7*4,0) ->  | U87: =VLOOKUP(P87,Daten!C$6:E$115,3,FALSE) ->  | V87: =VLOOKUP(P87,Daten!C$6:L$115,10,FALSE) ->  | W87: =VLOOKUP(P87,Daten!C$6:M$115,11,FALSE) ->  | X87: 0.05 | Y87: 0.1 | Z87: 0.8 | AA87: 0.85
P88: 11.8 | Q88: =Q87+0.2 -> 11.8 | R88: =ROUND(R83+(R90-R83)/7*5,0) ->  | U88: =VLOOKUP(P88,Daten!C$6:E$115,3,FALSE) ->  | V88: =VLOOKUP(P88,Daten!C$6:L$115,10,FALSE) ->  | W88: =VLOOKUP(P88,Daten!C$6:M$115,11,FALSE) ->  | X88: 0.05 | Y88: 0.1 | Z88: 0.8 | AA88: 0.85
P89: 11.9 | Q89: =Q88+0.1 -> 11.9 | R89: =ROUND(R83+(R90-R83)/7*6,0) ->  | U89: =VLOOKUP(P89,Daten!C$6:E$115,3,FALSE) ->  | V89: =VLOOKUP(P89,Daten!C$6:L$115,10,FALSE) ->  | W89: =VLOOKUP(P89,Daten!C$6:M$115,11,FALSE) ->  | X89: 0.05 | Y89: 0.1 | Z89: 0.8 | AA89: 0.85
P90: 12 | Q90: =Q89+0.1 -> 12 | R90: =VLOOKUP(Menü!H$24,Sollgewichte!A$4:CD$13,Q90+2,FALSE) ->  | U90: =VLOOKUP(P90,Daten!C$6:E$115,3,FALSE) ->  | V90: =VLOOKUP(P90,Daten!C$6:L$115,10,FALSE) ->  | W90: =VLOOKUP(P90,Daten!C$6:M$115,11,FALSE) ->  | X90: 0.05 | Y90: 0.1 | Z90: 0.8 | AA90: 0.85
P91: 12.2 | Q91: =Q90+0.2 -> 12.2 | R91: =ROUND(R90+(R97-R90)/7,0) ->  | U91: =VLOOKUP(P91,Daten!C$6:E$115,3,FALSE) ->  | V91: =VLOOKUP(P91,Daten!C$6:L$115,10,FALSE) ->  | W91: =VLOOKUP(P91,Daten!C$6:M$115,11,FALSE) ->  | X91: 0.05 | Y91: 0.1 | Z91: 0.8 | AA91: 0.85
P92: 12.3 | Q92: =Q91+0.1 -> 12.3 | R92: =ROUND(R90+(R97-R90)/7*2,0) ->  | U92: =VLOOKUP(P92,Daten!C$6:E$115,3,FALSE) ->  | V92: =VLOOKUP(P92,Daten!C$6:L$115,10,FALSE) ->  | W92: =VLOOKUP(P92,Daten!C$6:M$115,11,FALSE) ->  | X92: 0.05 | Y92: 0.1 | Z92: 0.8 | AA92: 0.85
P93: 12.5 | Q93: =Q92+0.2 -> 12.5 | R93: =ROUND(R90+(R97-R90)/7*3,0) ->  | U93: =VLOOKUP(P93,Daten!C$6:E$115,3,FALSE) ->  | V93: =VLOOKUP(P93,Daten!C$6:L$115,10,FALSE) ->  | W93: =VLOOKUP(P93,Daten!C$6:M$115,11,FALSE) ->  | X93: 0.05 | Y93: 0.1 | Z93: 0.8 | AA93: 0.85
P94: 12.6 | Q94: =Q93+0.1 -> 12.6 | R94: =ROUND(R90+(R97-R90)/7*4,0) ->  | U94: =VLOOKUP(P94,Daten!C$6:E$115,3,FALSE) ->  | V94: =VLOOKUP(P94,Daten!C$6:L$115,10,FALSE) ->  | W94: =VLOOKUP(P94,Daten!C$6:M$115,11,FALSE) ->  | X94: 0.05 | Y94: 0.1 | Z94: 0.8 | AA94: 0.85
P95: 12.8 | Q95: =Q94+0.2 -> 12.8 | R95: =ROUND(R90+(R97-R90)/7*5,0) ->  | U95: =VLOOKUP(P95,Daten!C$6:E$115,3,FALSE) ->  | V95: =VLOOKUP(P95,Daten!C$6:L$115,10,FALSE) ->  | W95: =VLOOKUP(P95,Daten!C$6:M$115,11,FALSE) ->  | X95: 0.05 | Y95: 0.1 | Z95: 0.8 | AA95: 0.85
P96: 12.9 | Q96: =Q95+0.1 -> 12.9 | R96: =ROUND(R90+(R97-R90)/7*6,0) ->  | U96: =VLOOKUP(P96,Daten!C$6:E$115,3,FALSE) ->  | V96: =VLOOKUP(P96,Daten!C$6:L$115,10,FALSE) ->  | W96: =VLOOKUP(P96,Daten!C$6:M$115,11,FALSE) ->  | X96: 0.05 | Y96: 0.1 | Z96: 0.8 | AA96: 0.85
P97: 13 | Q97: =Q96+0.1 -> 13 | R97: =VLOOKUP(Menü!H$24,Sollgewichte!A$4:CD$13,Q97+2,FALSE) ->  | U97: =VLOOKUP(P97,Daten!C$6:E$115,3,FALSE) ->  | V97: =VLOOKUP(P97,Daten!C$6:L$115,10,FALSE) ->  | W97: =VLOOKUP(P97,Daten!C$6:M$115,11,FALSE) ->  | X97: 0.05 | Y97: 0.1 | Z97: 0.8 | AA97: 0.85
P98: 13.2 | Q98: =Q97+0.2 -> 13.2 | R98: =ROUND(R97+(R104-R97)/7,0) ->  | U98: =VLOOKUP(P98,Daten!C$6:E$115,3,FALSE) ->  | V98: =VLOOKUP(P98,Daten!C$6:L$115,10,FALSE) ->  | W98: =VLOOKUP(P98,Daten!C$6:M$115,11,FALSE) ->  | X98: 0.05 | Y98: 0.1 | Z98: 0.8 | AA98: 0.85
P99: 13.3 | Q99: =Q98+0.1 -> 13.3 | R99: =ROUND(R97+(R104-R97)/7*2,0) ->  | U99: =VLOOKUP(P99,Daten!C$6:E$115,3,FALSE) ->  | V99: =VLOOKUP(P99,Daten!C$6:L$115,10,FALSE) ->  | W99: =VLOOKUP(P99,Daten!C$6:M$115,11,FALSE) ->  | X99: 0.05 | Y99: 0.1 | Z99: 0.8 | AA99: 0.85
P100: 13.5 | Q100: =Q99+0.2 -> 13.5 | R100: =ROUND(R97+(R104-R97)/7*3,0) ->  | U100: =VLOOKUP(P100,Daten!C$6:E$115,3,FALSE) ->  | V100: =VLOOKUP(P100,Daten!C$6:L$115,10,FALSE) ->  | W100: =VLOOKUP(P100,Daten!C$6:M$115,11,FALSE) ->  | X100: 0.05 | Y100: 0.1 | Z100: 0.8 | AA100: 0.85
P101: 13.6 | Q101: =Q100+0.1 -> 13.6 | R101: =ROUND(R97+(R104-R97)/7*4,0) ->  | U101: =VLOOKUP(P101,Daten!C$6:E$115,3,FALSE) ->  | V101: =VLOOKUP(P101,Daten!C$6:L$115,10,FALSE) ->  | W101: =VLOOKUP(P101,Daten!C$6:M$115,11,FALSE) ->  | X101: 0.05 | Y101: 0.1 | Z101: 0.8 | AA101: 0.85
P102: 13.8 | Q102: =Q101+0.2 -> 13.8 | R102: =ROUND(R97+(R104-R97)/7*5,0) ->  | U102: =VLOOKUP(P102,Daten!C$6:E$115,3,FALSE) ->  | V102: =VLOOKUP(P102,Daten!C$6:L$115,10,FALSE) ->  | W102: =VLOOKUP(P102,Daten!C$6:M$115,11,FALSE) ->  | X102: 0.05 | Y102: 0.1 | Z102: 0.8 | AA102: 0.85
P103: 13.9 | Q103: =Q102+0.1 -> 13.9 | R103: =ROUND(R97+(R104-R97)/7*6,0) ->  | U103: =VLOOKUP(P103,Daten!C$6:E$115,3,FALSE) ->  | V103: =VLOOKUP(P103,Daten!C$6:L$115,10,FALSE) ->  | W103: =VLOOKUP(P103,Daten!C$6:M$115,11,FALSE) ->  | X103: 0.05 | Y103: 0.1 | Z103: 0.8 | AA103: 0.85
P104: 14 | Q104: =Q103+0.1 -> 14 | R104: =VLOOKUP(Menü!H$24,Sollgewichte!A$4:CD$13,Q104+2,FALSE) ->  | U104: =VLOOKUP(P104,Daten!C$6:E$115,3,FALSE) ->  | V104: =VLOOKUP(P104,Daten!C$6:L$115,10,FALSE) ->  | W104: =VLOOKUP(P104,Daten!C$6:M$115,11,FALSE) ->  | X104: 0.05 | Y104: 0.1 | Z104: 0.8 | AA104: 0.85
P105: 14.2 | Q105: =Q104+0.2 -> 14.2 | R105: =ROUND(R104+(R111-R104)/7,0) ->  | U105: =VLOOKUP(P105,Daten!C$6:E$115,3,FALSE) ->  | V105: =VLOOKUP(P105,Daten!C$6:L$115,10,FALSE) ->  | W105: =VLOOKUP(P105,Daten!C$6:M$115,11,FALSE) ->  | X105: 0.05 | Y105: 0.1 | Z105: 0.8 | AA105: 0.85
P106: 14.3 | Q106: =Q105+0.1 -> 14.3 | R106: =ROUND(R104+(R111-R104)/7*2,0) ->  | U106: =VLOOKUP(P106,Daten!C$6:E$115,3,FALSE) ->  | V106: =VLOOKUP(P106,Daten!C$6:L$115,10,FALSE) ->  | W106: =VLOOKUP(P106,Daten!C$6:M$115,11,FALSE) ->  | X106: 0.05 | Y106: 0.1 | Z106: 0.8 | AA106: 0.85
P107: 14.5 | Q107: =Q106+0.2 -> 14.5 | R107: =ROUND(R104+(R111-R104)/7*3,0) ->  | U107: =VLOOKUP(P107,Daten!C$6:E$115,3,FALSE) ->  | V107: =VLOOKUP(P107,Daten!C$6:L$115,10,FALSE) ->  | W107: =VLOOKUP(P107,Daten!C$6:M$115,11,FALSE) ->  | X107: 0.05 | Y107: 0.1 | Z107: 0.8 | AA107: 0.85
P108: 14.6 | Q108: =Q107+0.1 -> 14.6 | R108: =ROUND(R104+(R111-R104)/7*4,0) ->  | U108: =VLOOKUP(P108,Daten!C$6:E$115,3,FALSE) ->  | V108: =VLOOKUP(P108,Daten!C$6:L$115,10,FALSE) ->  | W108: =VLOOKUP(P108,Daten!C$6:M$115,11,FALSE) ->  | X108: 0.05 | Y108: 0.1 | Z108: 0.8 | AA108: 0.85
P109: 14.8 | Q109: =Q108+0.2 -> 14.8 | R109: =ROUND(R104+(R111-R104)/7*5,0) ->  | U109: =VLOOKUP(P109,Daten!C$6:E$115,3,FALSE) ->  | V109: =VLOOKUP(P109,Daten!C$6:L$115,10,FALSE) ->  | W109: =VLOOKUP(P109,Daten!C$6:M$115,11,FALSE) ->  | X109: 0.05 | Y109: 0.1 | Z109: 0.8 | AA109: 0.85
P110: 14.9 | Q110: =Q109+0.1 -> 14.9 | R110: =ROUND(R104+(R111-R104)/7*6,0) ->  | U110: =VLOOKUP(P110,Daten!C$6:E$115,3,FALSE) ->  | V110: =VLOOKUP(P110,Daten!C$6:L$115,10,FALSE) ->  | W110: =VLOOKUP(P110,Daten!C$6:M$115,11,FALSE) ->  | X110: 0.05 | Y110: 0.1 | Z110: 0.8 | AA110: 0.85
P111: 15 | Q111: =Q110+0.1 -> 15 | R111: =VLOOKUP(Menü!H$24,Sollgewichte!A$4:CD$13,Q111+2,FALSE) ->  | U111: =VLOOKUP(P111,Daten!C$6:E$115,3,FALSE) ->  | V111: =VLOOKUP(P111,Daten!C$6:L$115,10,FALSE) ->  | W111: =VLOOKUP(P111,Daten!C$6:M$115,11,FALSE) ->  | X111: 0.05 | Y111: 0.1 | Z111: 0.8 | AA111: 0.85
P112: 15.2 | Q112: =Q111+0.2 -> 15.2 | R112: =ROUND(R111+(R118-R111)/7,0) ->  | U112: =VLOOKUP(P112,Daten!C$6:E$115,3,FALSE) ->  | V112: =VLOOKUP(P112,Daten!C$6:L$115,10,FALSE) ->  | W112: =VLOOKUP(P112,Daten!C$6:M$115,11,FALSE) ->  | X112: 0.05 | Y112: 0.1 | Z112: 0.8 | AA112: 0.85
P113: 15.3 | Q113: =Q112+0.1 -> 15.3 | R113: =ROUND(R111+(R118-R111)/7*2,0) ->  | U113: =VLOOKUP(P113,Daten!C$6:E$115,3,FALSE) ->  | V113: =VLOOKUP(P113,Daten!C$6:L$115,10,FALSE) ->  | W113: =VLOOKUP(P113,Daten!C$6:M$115,11,FALSE) ->  | X113: 0.05 | Y113: 0.1 | Z113: 0.8 | AA113: 0.85
P114: 15.5 | Q114: =Q113+0.2 -> 15.5 | R114: =ROUND(R111+(R118-R111)/7*3,0) ->  | U114: =VLOOKUP(P114,Daten!C$6:E$115,3,FALSE) ->  | V114: =VLOOKUP(P114,Daten!C$6:L$115,10,FALSE) ->  | W114: =VLOOKUP(P114,Daten!C$6:M$115,11,FALSE) ->  | X114: 0.05 | Y114: 0.1 | Z114: 0.8 | AA114: 0.85
P115: 15.6 | Q115: =Q114+0.1 -> 15.6 | R115: =ROUND(R111+(R118-R111)/7*4,0) ->  | U115: =VLOOKUP(P115,Daten!C$6:E$115,3,FALSE) ->  | V115: =VLOOKUP(P115,Daten!C$6:L$115,10,FALSE) ->  | W115: =VLOOKUP(P115,Daten!C$6:M$115,11,FALSE) ->  | X115: 0.05 | Y115: 0.1 | Z115: 0.8 | AA115: 0.85
P116: 15.8 | Q116: =Q115+0.2 -> 15.8 | R116: =ROUND(R111+(R118-R111)/7*5,0) ->  | U116: =VLOOKUP(P116,Daten!C$6:E$115,3,FALSE) ->  | V116: =VLOOKUP(P116,Daten!C$6:L$115,10,FALSE) ->  | W116: =VLOOKUP(P116,Daten!C$6:M$115,11,FALSE) ->  | X116: 0.05 | Y116: 0.1 | Z116: 0.8 | AA116: 0.85
P117: 15.9 | Q117: =Q116+0.1 -> 15.9 | R117: =ROUND(R111+(R118-R111)/7*6,0) ->  | U117: =VLOOKUP(P117,Daten!C$6:E$115,3,FALSE) ->  | V117: =VLOOKUP(P117,Daten!C$6:L$115,10,FALSE) ->  | W117: =VLOOKUP(P117,Daten!C$6:M$115,11,FALSE) ->  | X117: 0.05 | Y117: 0.1 | Z117: 0.8 | AA117: 0.85
P118: 16 | Q118: =Q117+0.1 -> 16 | R118: =VLOOKUP(Menü!H$24,Sollgewichte!A$4:CD$13,Q118+2,FALSE) ->  | U118: =VLOOKUP(P118,Daten!C$6:E$115,3,FALSE) ->  | V118: =VLOOKUP(P118,Daten!C$6:L$115,10,FALSE) ->  | W118: =VLOOKUP(P118,Daten!C$6:M$115,11,FALSE) ->  | X118: 0.05 | Y118: 0.1 | Z118: 0.8 | AA118: 0.85
P119: 16.2 | Q119: =Q118+0.2 -> 16.2 | R119: =ROUND(R118+(R125-R118)/7,0) ->  | U119: =VLOOKUP(P119,Daten!C$6:E$115,3,FALSE) ->  | V119: =VLOOKUP(P119,Daten!C$6:L$115,10,FALSE) ->  | W119: =VLOOKUP(P119,Daten!C$6:M$115,11,FALSE) ->  | X119: 0.05 | Y119: 0.1 | Z119: 0.8 | AA119: 0.85
P120: 16.3 | Q120: =Q119+0.1 -> 16.3 | R120: =ROUND(R118+(R125-R118)/7*2,0) ->  | U120: =VLOOKUP(P120,Daten!C$6:E$115,3,FALSE) ->  | V120: =VLOOKUP(P120,Daten!C$6:L$115,10,FALSE) ->  | W120: =VLOOKUP(P120,Daten!C$6:M$115,11,FALSE) ->  | X120: 0.05 | Y120: 0.1 | Z120: 0.8 | AA120: 0.85
P121: 16.5 | Q121: =Q120+0.2 -> 16.5 | R121: =ROUND(R118+(R125-R118)/7*3,0) ->  | U121: =VLOOKUP(P121,Daten!C$6:E$115,3,FALSE) ->  | V121: =VLOOKUP(P121,Daten!C$6:L$115,10,FALSE) ->  | W121: =VLOOKUP(P121,Daten!C$6:M$115,11,FALSE) ->  | X121: 0.05 | Y121: 0.1 | Z121: 0.8 | AA121: 0.85
P122: 16.6 | Q122: =Q121+0.1 -> 16.6 | R122: =ROUND(R118+(R125-R118)/7*4,0) ->  | U122: =VLOOKUP(P122,Daten!C$6:E$115,3,FALSE) ->  | V122: =VLOOKUP(P122,Daten!C$6:L$115,10,FALSE) ->  | W122: =VLOOKUP(P122,Daten!C$6:M$115,11,FALSE) ->  | X122: 0.05 | Y122: 0.1 | Z122: 0.8 | AA122: 0.85
P123: 16.8 | Q123: =Q122+0.2 -> 16.8 | R123: =ROUND(R118+(R125-R118)/7*5,0) ->  | U123: =VLOOKUP(P123,Daten!C$6:E$115,3,FALSE) ->  | V123: =VLOOKUP(P123,Daten!C$6:L$115,10,FALSE) ->  | W123: =VLOOKUP(P123,Daten!C$6:M$115,11,FALSE) ->  | X123: 0.05 | Y123: 0.1 | Z123: 0.8 | AA123: 0.85
P124: 16.9 | Q124: =Q123+0.1 -> 16.9 | R124: =ROUND(R118+(R125-R118)/7*6,0) ->  | U124: =VLOOKUP(P124,Daten!C$6:E$115,3,FALSE) ->  | V124: =VLOOKUP(P124,Daten!C$6:L$115,10,FALSE) ->  | W124: =VLOOKUP(P124,Daten!C$6:M$115,11,FALSE) ->  | X124: 0.05 | Y124: 0.1 | Z124: 0.8 | AA124: 0.85
P125: 17 | Q125: =Q124+0.1 -> 17 | R125: =VLOOKUP(Menü!H$24,Sollgewichte!A$4:CD$13,Q125+2,FALSE) ->  | U125: =VLOOKUP(P125,Daten!C$6:E$115,3,FALSE) ->  | V125: =VLOOKUP(P125,Daten!C$6:L$115,10,FALSE) ->  | W125: =VLOOKUP(P125,Daten!C$6:M$115,11,FALSE) ->  | X125: 0.05 | Y125: 0.1 | Z125: 0.8 | AA125: 0.85
P126: 17.2 | Q126: =Q125+0.2 -> 17.2 | R126: =ROUND(R125+(R132-R125)/7,0) ->  | U126: =VLOOKUP(P126,Daten!C$6:E$115,3,FALSE) ->  | V126: =VLOOKUP(P126,Daten!C$6:L$115,10,FALSE) ->  | W126: =VLOOKUP(P126,Daten!C$6:M$115,11,FALSE) ->  | X126: 0.05 | Y126: 0.1 | Z126: 0.8 | AA126: 0.85
P127: 17.3 | Q127: =Q126+0.1 -> 17.3 | R127: =ROUND(R125+(R132-R125)/7*2,0) ->  | U127: =VLOOKUP(P127,Daten!C$6:E$115,3,FALSE) ->  | V127: =VLOOKUP(P127,Daten!C$6:L$115,10,FALSE) ->  | W127: =VLOOKUP(P127,Daten!C$6:M$115,11,FALSE) ->  | X127: 0.05 | Y127: 0.1 | Z127: 0.8 | AA127: 0.85
P128: 17.5 | Q128: =Q127+0.2 -> 17.5 | R128: =ROUND(R125+(R132-R125)/7*3,0) ->  | U128: =VLOOKUP(P128,Daten!C$6:E$115,3,FALSE) ->  | V128: =VLOOKUP(P128,Daten!C$6:L$115,10,FALSE) ->  | W128: =VLOOKUP(P128,Daten!C$6:M$115,11,FALSE) ->  | X128: 0.05 | Y128: 0.1 | Z128: 0.8 | AA128: 0.85
P129: 17.6 | Q129: =Q128+0.1 -> 17.6 | R129: =ROUND(R125+(R132-R125)/7*4,0) ->  | U129: =VLOOKUP(P129,Daten!C$6:E$115,3,FALSE) ->  | V129: =VLOOKUP(P129,Daten!C$6:L$115,10,FALSE) ->  | W129: =VLOOKUP(P129,Daten!C$6:M$115,11,FALSE) ->  | X129: 0.05 | Y129: 0.1 | Z129: 0.8 | AA129: 0.85
P130: 17.8 | Q130: =Q129+0.2 -> 17.8 | R130: =ROUND(R125+(R132-R125)/7*5,0) ->  | U130: =VLOOKUP(P130,Daten!C$6:E$115,3,FALSE) ->  | V130: =VLOOKUP(P130,Daten!C$6:L$115,10,FALSE) ->  | W130: =VLOOKUP(P130,Daten!C$6:M$115,11,FALSE) ->  | X130: 0.05 | Y130: 0.1 | Z130: 0.8 | AA130: 0.85
P131: 17.9 | Q131: =Q130+0.1 -> 17.9 | R131: =ROUND(R125+(R132-R125)/7*6,0) ->  | U131: =VLOOKUP(P131,Daten!C$6:E$115,3,FALSE) ->  | V131: =VLOOKUP(P131,Daten!C$6:L$115,10,FALSE) ->  | W131: =VLOOKUP(P131,Daten!C$6:M$115,11,FALSE) ->  | X131: 0.05 | Y131: 0.1 | Z131: 0.8 | AA131: 0.85
P132: 18 | Q132: =Q131+0.1 -> 18 | R132: =VLOOKUP(Menü!H$24,Sollgewichte!A$4:CD$13,Q132+2,FALSE) ->  | U132: =VLOOKUP(P132,Daten!C$6:E$115,3,FALSE) ->  | V132: =VLOOKUP(P132,Daten!C$6:L$115,10,FALSE) ->  | W132: =VLOOKUP(P132,Daten!C$6:M$115,11,FALSE) ->  | X132: 0.05 | Y132: 0.1 | Z132: 0.8 | AA132: 0.85
P133: 18.2 | Q133: =Q132+0.2 -> 18.2 | R133: =ROUND(R132+(R139-R132)/7,0) ->  | U133: =VLOOKUP(P133,Daten!C$6:E$115,3,FALSE) ->  | V133: =VLOOKUP(P133,Daten!C$6:L$115,10,FALSE) ->  | W133: =VLOOKUP(P133,Daten!C$6:M$115,11,FALSE) ->  | X133: 0.05 | Y133: 0.1 | Z133: 0.8 | AA133: 0.85
P134: 18.3 | Q134: =Q133+0.1 -> 18.3 | R134: =ROUND(R132+(R139-R132)/7*2,0) ->  | U134: =VLOOKUP(P134,Daten!C$6:E$115,3,FALSE) ->  | V134: =VLOOKUP(P134,Daten!C$6:L$115,10,FALSE) ->  | W134: =VLOOKUP(P134,Daten!C$6:M$115,11,FALSE) ->  | X134: 0.05 | Y134: 0.1 | Z134: 0.8 | AA134: 0.85
P135: =ROUND(Q135,1) -> 18.5 | Q135: =Q134+0.2 -> 18.5 | R135: =ROUND(R132+(R139-R132)/7*3,0) ->  | S135: =R135*0.95 ->  | T135: =R135 ->  | U135: =VLOOKUP(P135,Daten!C$6:E$115,3,FALSE) ->  | V135: =VLOOKUP(P135,Daten!C$6:L$115,10,FALSE) ->  | W135: =VLOOKUP(P135,Daten!C$6:M$115,11,FALSE) ->  | X135: 0.05 | Y135: 0.1 | Z135: 0.8 | AA135: 0.85
P136: 18.6 | Q136: =Q135+0.1 -> 18.6 | R136: =ROUND(R132+(R139-R132)/7*4,0) ->  | U136: =VLOOKUP(P136,Daten!C$6:E$115,3,FALSE) ->  | V136: =VLOOKUP(P136,Daten!C$6:L$115,10,FALSE) ->  | W136: =VLOOKUP(P136,Daten!C$6:M$115,11,FALSE) ->  | X136: 0.05 | Y136: 0.1 | Z136: 0.8 | AA136: 0.85
P137: 18.8 | Q137: =Q136+0.2 -> 18.8 | R137: =ROUND(R132+(R139-R132)/7*5,0) ->  | U137: =VLOOKUP(P137,Daten!C$6:E$115,3,FALSE) ->  | V137: =VLOOKUP(P137,Daten!C$6:L$115,10,FALSE) ->  | W137: =VLOOKUP(P137,Daten!C$6:M$115,11,FALSE) ->  | X137: 0.05 | Y137: 0.1 | Z137: 0.8 | AA137: 0.85
P138: 18.9 | Q138: =Q137+0.1 -> 18.9 | R138: =ROUND(R132+(R139-R132)/7*6,0) ->  | U138: =VLOOKUP(P138,Daten!C$6:E$115,3,FALSE) ->  | V138: =VLOOKUP(P138,Daten!C$6:L$115,10,FALSE) ->  | W138: =VLOOKUP(P138,Daten!C$6:M$115,11,FALSE) ->  | X138: 0.05 | Y138: 0.1 | Z138: 0.8 | AA138: 0.85
P139: 19 | Q139: =Q138+0.1 -> 19 | R139: =VLOOKUP(Menü!H$24,Sollgewichte!A$4:CD$13,Q139+2,FALSE) ->  | U139: =VLOOKUP(P139,Daten!C$6:E$115,3,FALSE) ->  | V139: =VLOOKUP(P139,Daten!C$6:L$115,10,FALSE) ->  | W139: =VLOOKUP(P139,Daten!C$6:M$115,11,FALSE) ->  | X139: 0.05 | Y139: 0.1 | Z139: 0.8 | AA139: 0.85
P140: 19.2 | Q140: =Q139+0.2 -> 19.2 | R140: =ROUND(R139+(R146-R139)/7,0) ->  | U140: =VLOOKUP(P140,Daten!C$6:E$115,3,FALSE) ->  | V140: =VLOOKUP(P140,Daten!C$6:L$115,10,FALSE) ->  | W140: =VLOOKUP(P140,Daten!C$6:M$115,11,FALSE) ->  | X140: 0.05 | Y140: 0.1 | Z140: 0.8 | AA140: 0.85
P141: 19.3 | Q141: =Q140+0.1 -> 19.3 | R141: =ROUND(R139+(R146-R139)/7*2,0) ->  | U141: =VLOOKUP(P141,Daten!C$6:E$115,3,FALSE) ->  | V141: =VLOOKUP(P141,Daten!C$6:L$115,10,FALSE) ->  | W141: =VLOOKUP(P141,Daten!C$6:M$115,11,FALSE) ->  | X141: 0.05 | Y141: 0.1 | Z141: 0.8 | AA141: 0.85
P142: 19.5 | Q142: =Q141+0.2 -> 19.5 | R142: =ROUND(R139+(R146-R139)/7*3,0) ->  | U142: =VLOOKUP(P142,Daten!C$6:E$115,3,FALSE) ->  | V142: =VLOOKUP(P142,Daten!C$6:L$115,10,FALSE) ->  | W142: =VLOOKUP(P142,Daten!C$6:M$115,11,FALSE) ->  | X142: 0.05 | Y142: 0.1 | Z142: 0.8 | AA142: 0.85
P143: 19.6 | Q143: =Q142+0.1 -> 19.6 | R143: =ROUND(R139+(R146-R139)/7*4,0) ->  | U143: =VLOOKUP(P143,Daten!C$6:E$115,3,FALSE) ->  | V143: =VLOOKUP(P143,Daten!C$6:L$115,10,FALSE) ->  | W143: =VLOOKUP(P143,Daten!C$6:M$115,11,FALSE) ->  | X143: 0.05 | Y143: 0.1 | Z143: 0.8 | AA143: 0.85
P144: 19.8 | Q144: =Q143+0.2 -> 19.8 | R144: =ROUND(R139+(R146-R139)/7*5,0) ->  | U144: =VLOOKUP(P144,Daten!C$6:E$115,3,FALSE) ->  | V144: =VLOOKUP(P144,Daten!C$6:L$115,10,FALSE) ->  | W144: =VLOOKUP(P144,Daten!C$6:M$115,11,FALSE) ->  | X144: 0.05 | Y144: 0.1 | Z144: 0.8 | AA144: 0.85
P145: 19.9 | Q145: =Q144+0.1 -> 19.9 | R145: =ROUND(R139+(R146-R139)/7*6,0) ->  | U145: =VLOOKUP(P145,Daten!C$6:E$115,3,FALSE) ->  | V145: =VLOOKUP(P145,Daten!C$6:L$115,10,FALSE) ->  | W145: =VLOOKUP(P145,Daten!C$6:M$115,11,FALSE) ->  | X145: 0.05 | Y145: 0.1 | Z145: 0.8 | AA145: 0.85
P146: 20 | Q146: =Q145+0.1 -> 20 | R146: =VLOOKUP(Menü!H$24,Sollgewichte!A$4:CD$13,Q146+2,FALSE) ->  | U146: =VLOOKUP(P146,Daten!C$6:E$115,3,FALSE) ->  | V146: =VLOOKUP(P146,Daten!C$6:L$115,10,FALSE) ->  | W146: =VLOOKUP(P146,Daten!C$6:M$115,11,FALSE) ->  | X146: 0.05 | Y146: 0.1 | Z146: 0.8 | AA146: 0.85
P147: 20.2 | Q147: =Q146+0.2 -> 20.2 | R147: =ROUND(R146+(R153-R146)/7,0) ->  | U147: =VLOOKUP(P147,Daten!C$6:E$115,3,FALSE) ->  | V147: =VLOOKUP(P147,Daten!C$6:L$115,10,FALSE) ->  | W147: =VLOOKUP(P147,Daten!C$6:M$115,11,FALSE) ->  | X147: 0.05 | Y147: 0.1 | Z147: 0.8 | AA147: 0.85
P148: 20.3 | Q148: =Q147+0.1 -> 20.3 | R148: =ROUND(R146+(R153-R146)/7*2,0) ->  | U148: =VLOOKUP(P148,Daten!C$6:E$115,3,FALSE) ->  | V148: =VLOOKUP(P148,Daten!C$6:L$115,10,FALSE) ->  | W148: =VLOOKUP(P148,Daten!C$6:M$115,11,FALSE) ->  | X148: 0.05 | Y148: 0.1 | Z148: 0.8 | AA148: 0.85
P149: 20.5 | Q149: =Q148+0.2 -> 20.5 | R149: =ROUND(R146+(R153-R146)/7*3,0) ->  | U149: =VLOOKUP(P149,Daten!C$6:E$115,3,FALSE) ->  | V149: =VLOOKUP(P149,Daten!C$6:L$115,10,FALSE) ->  | W149: =VLOOKUP(P149,Daten!C$6:M$115,11,FALSE) ->  | X149: 0.05 | Y149: 0.1 | Z149: 0.8 | AA149: 0.85
P150: 20.6 | Q150: =Q149+0.1 -> 20.6 | R150: =ROUND(R146+(R153-R146)/7*4,0) ->  | U150: =VLOOKUP(P150,Daten!C$6:E$115,3,FALSE) ->  | V150: =VLOOKUP(P150,Daten!C$6:L$115,10,FALSE) ->  | W150: =VLOOKUP(P150,Daten!C$6:M$115,11,FALSE) ->  | X150: 0.05 | Y150: 0.1 | Z150: 0.8 | AA150: 0.85
P151: 20.8 | Q151: =Q150+0.2 -> 20.8 | R151: =ROUND(R146+(R153-R146)/7*5,0) ->  | U151: =VLOOKUP(P151,Daten!C$6:E$115,3,FALSE) ->  | V151: =VLOOKUP(P151,Daten!C$6:L$115,10,FALSE) ->  | W151: =VLOOKUP(P151,Daten!C$6:M$115,11,FALSE) ->  | X151: 0.05 | Y151: 0.1 | Z151: 0.8 | AA151: 0.85
P152: 20.9 | Q152: =Q151+0.1 -> 20.9 | R152: =ROUND(R146+(R153-R146)/7*6,0) ->  | U152: =VLOOKUP(P152,Daten!C$6:E$115,3,FALSE) ->  | V152: =VLOOKUP(P152,Daten!C$6:L$115,10,FALSE) ->  | W152: =VLOOKUP(P152,Daten!C$6:M$115,11,FALSE) ->  | X152: 0.05 | Y152: 0.1 | Z152: 0.8 | AA152: 0.85
P153: 21 | Q153: =Q152+0.1 -> 21 | R153: =VLOOKUP(Menü!H$24,Sollgewichte!A$4:CD$13,Q153+2,FALSE) ->  | U153: =VLOOKUP(P153,Daten!C$6:E$115,3,FALSE) ->  | V153: =VLOOKUP(P153,Daten!C$6:L$115,10,FALSE) ->  | W153: =VLOOKUP(P153,Daten!C$6:M$115,11,FALSE) ->  | X153: 0.05 | Y153: 0.1 | Z153: 0.8 | AA153: 0.85
P154: 21.2 | Q154: =Q153+0.2 -> 21.2 | R154: =ROUND(R153+(R160-R153)/7,0) ->  | U154: =VLOOKUP(P154,Daten!C$6:E$115,3,FALSE) ->  | V154: =VLOOKUP(P154,Daten!C$6:L$115,10,FALSE) ->  | W154: =VLOOKUP(P154,Daten!C$6:M$115,11,FALSE) ->  | X154: 0.05 | Y154: 0.1 | Z154: 0.8 | AA154: 0.85
P155: 21.3 | Q155: =Q154+0.1 -> 21.3 | R155: =ROUND(R153+(R160-R153)/7*2,0) ->  | U155: =VLOOKUP(P155,Daten!C$6:E$115,3,FALSE) ->  | V155: =VLOOKUP(P155,Daten!C$6:L$115,10,FALSE) ->  | W155: =VLOOKUP(P155,Daten!C$6:M$115,11,FALSE) ->  | X155: 0.05 | Y155: 0.1 | Z155: 0.8 | AA155: 0.85
P156: 21.5 | Q156: =Q155+0.2 -> 21.5 | R156: =ROUND(R153+(R160-R153)/7*3,0) ->  | U156: =VLOOKUP(P156,Daten!C$6:E$115,3,FALSE) ->  | V156: =VLOOKUP(P156,Daten!C$6:L$115,10,FALSE) ->  | W156: =VLOOKUP(P156,Daten!C$6:M$115,11,FALSE) ->  | X156: 0.05 | Y156: 0.1 | Z156: 0.8 | AA156: 0.85
P157: 21.6 | Q157: =Q156+0.1 -> 21.6 | R157: =ROUND(R153+(R160-R153)/7*4,0) ->  | U157: =VLOOKUP(P157,Daten!C$6:E$115,3,FALSE) ->  | V157: =VLOOKUP(P157,Daten!C$6:L$115,10,FALSE) ->  | W157: =VLOOKUP(P157,Daten!C$6:M$115,11,FALSE) ->  | X157: 0.05 | Y157: 0.1 | Z157: 0.8 | AA157: 0.85
P158: 21.8 | Q158: =Q157+0.2 -> 21.8 | R158: =ROUND(R153+(R160-R153)/7*5,0) ->  | U158: =VLOOKUP(P158,Daten!C$6:E$115,3,FALSE) ->  | V158: =VLOOKUP(P158,Daten!C$6:L$115,10,FALSE) ->  | W158: =VLOOKUP(P158,Daten!C$6:M$115,11,FALSE) ->  | X158: 0.05 | Y158: 0.1 | Z158: 0.8 | AA158: 0.85
P159: 21.9 | Q159: =Q158+0.1 -> 21.9 | R159: =ROUND(R153+(R160-R153)/7*6,0) ->  | U159: =VLOOKUP(P159,Daten!C$6:E$115,3,FALSE) ->  | V159: =VLOOKUP(P159,Daten!C$6:L$115,10,FALSE) ->  | W159: =VLOOKUP(P159,Daten!C$6:M$115,11,FALSE) ->  | X159: 0.05 | Y159: 0.1 | Z159: 0.8 | AA159: 0.85
P160: 22 | Q160: =Q159+0.1 -> 22 | R160: =VLOOKUP(Menü!H$24,Sollgewichte!A$4:CD$13,Q160+2,FALSE) ->  | U160: =VLOOKUP(P160,Daten!C$6:E$115,3,FALSE) ->  | V160: =VLOOKUP(P160,Daten!C$6:L$115,10,FALSE) ->  | W160: =VLOOKUP(P160,Daten!C$6:M$115,11,FALSE) ->  | X160: 0.05 | Y160: 0.1 | Z160: 0.8 | AA160: 0.85
P161: 22.2 | Q161: =Q160+0.2 -> 22.2 | R161: =ROUND(R160+(R167-R160)/7,0) ->  | U161: =VLOOKUP(P161,Daten!C$6:E$115,3,FALSE) ->  | V161: =VLOOKUP(P161,Daten!C$6:L$115,10,FALSE) ->  | W161: =VLOOKUP(P161,Daten!C$6:M$115,11,FALSE) ->  | X161: 0.05 | Y161: 0.1 | Z161: 0.8 | AA161: 0.85
P162: 22.3 | Q162: =Q161+0.1 -> 22.3 | R162: =ROUND(R160+(R167-R160)/7*2,0) ->  | U162: =VLOOKUP(P162,Daten!C$6:E$115,3,FALSE) ->  | V162: =VLOOKUP(P162,Daten!C$6:L$115,10,FALSE) ->  | W162: =VLOOKUP(P162,Daten!C$6:M$115,11,FALSE) ->  | X162: 0.05 | Y162: 0.1 | Z162: 0.8 | AA162: 0.85
P163: 22.5 | Q163: =Q162+0.2 -> 22.5 | R163: =ROUND(R160+(R167-R160)/7*3,0) ->  | U163: =VLOOKUP(P163,Daten!C$6:E$115,3,FALSE) ->  | V163: =VLOOKUP(P163,Daten!C$6:L$115,10,FALSE) ->  | W163: =VLOOKUP(P163,Daten!C$6:M$115,11,FALSE) ->  | X163: 0.05 | Y163: 0.1 | Z163: 0.8 | AA163: 0.85
P164: 22.6 | Q164: =Q163+0.1 -> 22.6 | R164: =ROUND(R160+(R167-R160)/7*4,0) ->  | U164: =VLOOKUP(P164,Daten!C$6:E$115,3,FALSE) ->  | V164: =VLOOKUP(P164,Daten!C$6:L$115,10,FALSE) ->  | W164: =VLOOKUP(P164,Daten!C$6:M$115,11,FALSE) ->  | X164: 0.05 | Y164: 0.1 | Z164: 0.8 | AA164: 0.85
P165: 22.8 | Q165: =Q164+0.2 -> 22.8 | R165: =ROUND(R160+(R167-R160)/7*5,0) ->  | U165: =VLOOKUP(P165,Daten!C$6:E$115,3,FALSE) ->  | V165: =VLOOKUP(P165,Daten!C$6:L$115,10,FALSE) ->  | W165: =VLOOKUP(P165,Daten!C$6:M$115,11,FALSE) ->  | X165: 0.05 | Y165: 0.1 | Z165: 0.8 | AA165: 0.85
P166: 22.9 | Q166: =Q165+0.1 -> 22.9 | R166: =ROUND(R160+(R167-R160)/7*6,0) ->  | U166: =VLOOKUP(P166,Daten!C$6:E$115,3,FALSE) ->  | V166: =VLOOKUP(P166,Daten!C$6:L$115,10,FALSE) ->  | W166: =VLOOKUP(P166,Daten!C$6:M$115,11,FALSE) ->  | X166: 0.05 | Y166: 0.1 | Z166: 0.8 | AA166: 0.85
P167: 23 | Q167: =Q166+0.1 -> 23 | R167: =VLOOKUP(Menü!H$24,Sollgewichte!A$4:CD$13,Q167+2,FALSE) ->  | U167: =VLOOKUP(P167,Daten!C$6:E$115,3,FALSE) ->  | V167: =VLOOKUP(P167,Daten!C$6:L$115,10,FALSE) ->  | W167: =VLOOKUP(P167,Daten!C$6:M$115,11,FALSE) ->  | X167: 0.05 | Y167: 0.1 | Z167: 0.8 | AA167: 0.85
P168: 23.2 | Q168: =Q167+0.2 -> 23.2 | R168: =ROUND(R167+(R174-R167)/7,0) ->  | U168: =VLOOKUP(P168,Daten!C$6:E$115,3,FALSE) ->  | V168: =VLOOKUP(P168,Daten!C$6:L$115,10,FALSE) ->  | W168: =VLOOKUP(P168,Daten!C$6:M$115,11,FALSE) ->  | X168: 0.05 | Y168: 0.1 | Z168: 0.8 | AA168: 0.85
P169: 23.3 | Q169: =Q168+0.1 -> 23.3 | R169: =ROUND(R167+(R174-R167)/7*2,0) ->  | U169: =VLOOKUP(P169,Daten!C$6:E$115,3,FALSE) ->  | V169: =VLOOKUP(P169,Daten!C$6:L$115,10,FALSE) ->  | W169: =VLOOKUP(P169,Daten!C$6:M$115,11,FALSE) ->  | X169: 0.05 | Y169: 0.1 | Z169: 0.8 | AA169: 0.85
P170: 23.5 | Q170: =Q169+0.2 -> 23.5 | R170: =ROUND(R167+(R174-R167)/7*3,0) ->  | U170: =VLOOKUP(P170,Daten!C$6:E$115,3,FALSE) ->  | V170: =VLOOKUP(P170,Daten!C$6:L$115,10,FALSE) ->  | W170: =VLOOKUP(P170,Daten!C$6:M$115,11,FALSE) ->  | X170: 0.05 | Y170: 0.1 | Z170: 0.8 | AA170: 0.85
P171: 23.6 | Q171: =Q170+0.1 -> 23.6 | R171: =ROUND(R167+(R174-R167)/7*4,0) ->  | U171: =VLOOKUP(P171,Daten!C$6:E$115,3,FALSE) ->  | V171: =VLOOKUP(P171,Daten!C$6:L$115,10,FALSE) ->  | W171: =VLOOKUP(P171,Daten!C$6:M$115,11,FALSE) ->  | X171: 0.05 | Y171: 0.1 | Z171: 0.8 | AA171: 0.85
P172: 23.8 | Q172: =Q171+0.2 -> 23.8 | R172: =ROUND(R167+(R174-R167)/7*5,0) ->  | U172: =VLOOKUP(P172,Daten!C$6:E$115,3,FALSE) ->  | V172: =VLOOKUP(P172,Daten!C$6:L$115,10,FALSE) ->  | W172: =VLOOKUP(P172,Daten!C$6:M$115,11,FALSE) ->  | X172: 0.05 | Y172: 0.1 | Z172: 0.8 | AA172: 0.85
P173: 23.9 | Q173: =Q172+0.1 -> 23.9 | R173: =ROUND(R167+(R174-R167)/7*6,0) ->  | U173: =VLOOKUP(P173,Daten!C$6:E$115,3,FALSE) ->  | V173: =VLOOKUP(P173,Daten!C$6:L$115,10,FALSE) ->  | W173: =VLOOKUP(P173,Daten!C$6:M$115,11,FALSE) ->  | X173: 0.05 | Y173: 0.1 | Z173: 0.8 | AA173: 0.85
P174: 24 | Q174: =Q173+0.1 -> 24 | R174: =VLOOKUP(Menü!H$24,Sollgewichte!A$4:CD$13,Q174+2,FALSE) ->  | U174: =VLOOKUP(P174,Daten!C$6:E$115,3,FALSE) ->  | V174: =VLOOKUP(P174,Daten!C$6:L$115,10,FALSE) ->  | W174: =VLOOKUP(P174,Daten!C$6:M$115,11,FALSE) ->  | X174: 0.05 | Y174: 0.1 | Z174: 0.8 | AA174: 0.85
P175: 24.2 | Q175: =Q174+0.2 -> 24.2 | R175: =ROUND(R174+(R181-R174)/7,0) ->  | U175: =VLOOKUP(P175,Daten!C$6:E$115,3,FALSE) ->  | V175: =VLOOKUP(P175,Daten!C$6:L$115,10,FALSE) ->  | W175: =VLOOKUP(P175,Daten!C$6:M$115,11,FALSE) ->  | X175: 0.05 | Y175: 0.1 | Z175: 0.8 | AA175: 0.85
P176: 24.3 | Q176: =Q175+0.1 -> 24.3 | R176: =ROUND(R174+(R181-R174)/7*2,0) ->  | U176: =VLOOKUP(P176,Daten!C$6:E$115,3,FALSE) ->  | V176: =VLOOKUP(P176,Daten!C$6:L$115,10,FALSE) ->  | W176: =VLOOKUP(P176,Daten!C$6:M$115,11,FALSE) ->  | X176: 0.05 | Y176: 0.1 | Z176: 0.8 | AA176: 0.85
P177: 24.5 | Q177: =Q176+0.2 -> 24.5 | R177: =ROUND(R174+(R181-R174)/7*3,0) ->  | U177: =VLOOKUP(P177,Daten!C$6:E$115,3,FALSE) ->  | V177: =VLOOKUP(P177,Daten!C$6:L$115,10,FALSE) ->  | W177: =VLOOKUP(P177,Daten!C$6:M$115,11,FALSE) ->  | X177: 0.05 | Y177: 0.1 | Z177: 0.8 | AA177: 0.85
P178: 24.6 | Q178: =Q177+0.1 -> 24.6 | R178: =ROUND(R174+(R181-R174)/7*4,0) ->  | U178: =VLOOKUP(P178,Daten!C$6:E$115,3,FALSE) ->  | V178: =VLOOKUP(P178,Daten!C$6:L$115,10,FALSE) ->  | W178: =VLOOKUP(P178,Daten!C$6:M$115,11,FALSE) ->  | X178: 0.05 | Y178: 0.1 | Z178: 0.8 | AA178: 0.85
P179: 24.8 | Q179: =Q178+0.2 -> 24.8 | R179: =ROUND(R174+(R181-R174)/7*5,0) ->  | U179: =VLOOKUP(P179,Daten!C$6:E$115,3,FALSE) ->  | V179: =VLOOKUP(P179,Daten!C$6:L$115,10,FALSE) ->  | W179: =VLOOKUP(P179,Daten!C$6:M$115,11,FALSE) ->  | X179: 0.05 | Y179: 0.1 | Z179: 0.8 | AA179: 0.85
P180: 24.9 | Q180: =Q179+0.1 -> 24.9 | R180: =ROUND(R174+(R181-R174)/7*6,0) ->  | U180: =VLOOKUP(P180,Daten!C$6:E$115,3,FALSE) ->  | V180: =VLOOKUP(P180,Daten!C$6:L$115,10,FALSE) ->  | W180: =VLOOKUP(P180,Daten!C$6:M$115,11,FALSE) ->  | X180: 0.05 | Y180: 0.1 | Z180: 0.8 | AA180: 0.85
P181: 25 | Q181: =Q180+0.1 -> 25 | R181: =VLOOKUP(Menü!H$24,Sollgewichte!A$4:CD$13,Q181+2,FALSE) ->  | U181: =VLOOKUP(P181,Daten!C$6:E$115,3,FALSE) ->  | V181: =VLOOKUP(P181,Daten!C$6:L$115,10,FALSE) ->  | W181: =VLOOKUP(P181,Daten!C$6:M$115,11,FALSE) ->  | X181: 0.05 | Y181: 0.1 | Z181: 0.8 | AA181: 0.85
P182: 25.2 | Q182: =Q181+0.2 -> 25.2 | R182: =ROUND(R181+(R188-R181)/7,0) ->  | U182: =VLOOKUP(P182,Daten!C$6:E$115,3,FALSE) ->  | V182: =VLOOKUP(P182,Daten!C$6:L$115,10,FALSE) ->  | W182: =VLOOKUP(P182,Daten!C$6:M$115,11,FALSE) ->  | X182: 0.05 | Y182: 0.1 | Z182: 0.8 | AA182: 0.85
P183: 25.3 | Q183: =Q182+0.1 -> 25.3 | R183: =ROUND(R181+(R188-R181)/7*2,0) ->  | U183: =VLOOKUP(P183,Daten!C$6:E$115,3,FALSE) ->  | V183: =VLOOKUP(P183,Daten!C$6:L$115,10,FALSE) ->  | W183: =VLOOKUP(P183,Daten!C$6:M$115,11,FALSE) ->  | X183: 0.05 | Y183: 0.1 | Z183: 0.8 | AA183: 0.85
P184: 25.5 | Q184: =Q183+0.2 -> 25.5 | R184: =ROUND(R181+(R188-R181)/7*3,0) ->  | U184: =VLOOKUP(P184,Daten!C$6:E$115,3,FALSE) ->  | V184: =VLOOKUP(P184,Daten!C$6:L$115,10,FALSE) ->  | W184: =VLOOKUP(P184,Daten!C$6:M$115,11,FALSE) ->  | X184: 0.05 | Y184: 0.1 | Z184: 0.8 | AA184: 0.85
P185: 25.6 | Q185: =Q184+0.1 -> 25.6 | R185: =ROUND(R181+(R188-R181)/7*4,0) ->  | U185: =VLOOKUP(P185,Daten!C$6:E$115,3,FALSE) ->  | V185: =VLOOKUP(P185,Daten!C$6:L$115,10,FALSE) ->  | W185: =VLOOKUP(P185,Daten!C$6:M$115,11,FALSE) ->  | X185: 0.05 | Y185: 0.1 | Z185: 0.8 | AA185: 0.85
P186: 25.8 | Q186: =Q185+0.2 -> 25.8 | R186: =ROUND(R181+(R188-R181)/7*5,0) ->  | U186: =VLOOKUP(P186,Daten!C$6:E$115,3,FALSE) ->  | V186: =VLOOKUP(P186,Daten!C$6:L$115,10,FALSE) ->  | W186: =VLOOKUP(P186,Daten!C$6:M$115,11,FALSE) ->  | X186: 0.05 | Y186: 0.1 | Z186: 0.8 | AA186: 0.85
P187: 25.9 | Q187: =Q186+0.1 -> 25.9 | R187: =ROUND(R181+(R188-R181)/7*6,0) ->  | U187: =VLOOKUP(P187,Daten!C$6:E$115,3,FALSE) ->  | V187: =VLOOKUP(P187,Daten!C$6:L$115,10,FALSE) ->  | W187: =VLOOKUP(P187,Daten!C$6:M$115,11,FALSE) ->  | X187: 0.05 | Y187: 0.1 | Z187: 0.8 | AA187: 0.85
P188: 26 | Q188: =Q187+0.1 -> 26 | R188: =VLOOKUP(Menü!H$24,Sollgewichte!A$4:CD$13,Q188+2,FALSE) ->  | U188: =VLOOKUP(P188,Daten!C$6:E$115,3,FALSE) ->  | V188: =VLOOKUP(P188,Daten!C$6:L$115,10,FALSE) ->  | W188: =VLOOKUP(P188,Daten!C$6:M$115,11,FALSE) ->  | X188: 0.05 | Y188: 0.1 | Z188: 0.8 | AA188: 0.85
P189: 26.2 | Q189: =Q188+0.2 -> 26.2 | R189: =ROUND(R188+(R195-R188)/7,0) ->  | U189: =VLOOKUP(P189,Daten!C$6:E$115,3,FALSE) ->  | V189: =VLOOKUP(P189,Daten!C$6:L$115,10,FALSE) ->  | W189: =VLOOKUP(P189,Daten!C$6:M$115,11,FALSE) ->  | X189: 0.05 | Y189: 0.1 | Z189: 0.8 | AA189: 0.85
P190: 26.3 | Q190: =Q189+0.1 -> 26.3 | R190: =ROUND(R188+(R195-R188)/7*2,0) ->  | U190: =VLOOKUP(P190,Daten!C$6:E$115,3,FALSE) ->  | V190: =VLOOKUP(P190,Daten!C$6:L$115,10,FALSE) ->  | W190: =VLOOKUP(P190,Daten!C$6:M$115,11,FALSE) ->  | X190: 0.05 | Y190: 0.1 | Z190: 0.8 | AA190: 0.85
P191: 26.5 | Q191: =Q190+0.2 -> 26.5 | R191: =ROUND(R188+(R195-R188)/7*3,0) ->  | U191: =VLOOKUP(P191,Daten!C$6:E$115,3,FALSE) ->  | V191: =VLOOKUP(P191,Daten!C$6:L$115,10,FALSE) ->  | W191: =VLOOKUP(P191,Daten!C$6:M$115,11,FALSE) ->  | X191: 0.05 | Y191: 0.1 | Z191: 0.8 | AA191: 0.85
P192: 26.6 | Q192: =Q191+0.1 -> 26.6 | R192: =ROUND(R188+(R195-R188)/7*4,0) ->  | U192: =VLOOKUP(P192,Daten!C$6:E$115,3,FALSE) ->  | V192: =VLOOKUP(P192,Daten!C$6:L$115,10,FALSE) ->  | W192: =VLOOKUP(P192,Daten!C$6:M$115,11,FALSE) ->  | X192: 0.05 | Y192: 0.1 | Z192: 0.8 | AA192: 0.85
P193: 26.8 | Q193: =Q192+0.2 -> 26.8 | R193: =ROUND(R188+(R195-R188)/7*5,0) ->  | U193: =VLOOKUP(P193,Daten!C$6:E$115,3,FALSE) ->  | V193: =VLOOKUP(P193,Daten!C$6:L$115,10,FALSE) ->  | W193: =VLOOKUP(P193,Daten!C$6:M$115,11,FALSE) ->  | X193: 0.05 | Y193: 0.1 | Z193: 0.8 | AA193: 0.85
P194: 26.9 | Q194: =Q193+0.1 -> 26.9 | R194: =ROUND(R188+(R195-R188)/7*6,0) ->  | U194: =VLOOKUP(P194,Daten!C$6:E$115,3,FALSE) ->  | V194: =VLOOKUP(P194,Daten!C$6:L$115,10,FALSE) ->  | W194: =VLOOKUP(P194,Daten!C$6:M$115,11,FALSE) ->  | X194: 0.05 | Y194: 0.1 | Z194: 0.8 | AA194: 0.85
P195: 27 | Q195: =Q194+0.1 -> 27 | R195: =VLOOKUP(Menü!H$24,Sollgewichte!A$4:CD$13,Q195+2,FALSE) ->  | U195: =VLOOKUP(P195,Daten!C$6:E$115,3,FALSE) ->  | V195: =VLOOKUP(P195,Daten!C$6:L$115,10,FALSE) ->  | W195: =VLOOKUP(P195,Daten!C$6:M$115,11,FALSE) ->  | X195: 0.05 | Y195: 0.1 | Z195: 0.8 | AA195: 0.85
P196: 27.2 | Q196: =Q195+0.2 -> 27.2 | R196: =ROUND(R195+(R202-R195)/7,0) ->  | U196: =VLOOKUP(P196,Daten!C$6:E$115,3,FALSE) ->  | V196: =VLOOKUP(P196,Daten!C$6:L$115,10,FALSE) ->  | W196: =VLOOKUP(P196,Daten!C$6:M$115,11,FALSE) ->  | X196: 0.05 | Y196: 0.1 | Z196: 0.8 | AA196: 0.85
P197: 27.3 | Q197: =Q196+0.1 -> 27.3 | R197: =ROUND(R195+(R202-R195)/7*2,0) ->  | U197: =VLOOKUP(P197,Daten!C$6:E$115,3,FALSE) ->  | V197: =VLOOKUP(P197,Daten!C$6:L$115,10,FALSE) ->  | W197: =VLOOKUP(P197,Daten!C$6:M$115,11,FALSE) ->  | X197: 0.05 | Y197: 0.1 | Z197: 0.8 | AA197: 0.85
P198: 27.5 | Q198: =Q197+0.2 -> 27.5 | R198: =ROUND(R195+(R202-R195)/7*3,0) ->  | U198: =VLOOKUP(P198,Daten!C$6:E$115,3,FALSE) ->  | V198: =VLOOKUP(P198,Daten!C$6:L$115,10,FALSE) ->  | W198: =VLOOKUP(P198,Daten!C$6:M$115,11,FALSE) ->  | X198: 0.05 | Y198: 0.1 | Z198: 0.8 | AA198: 0.85
P199: =ROUND(Q199,1) -> 27.6 | Q199: =Q198+0.1 -> 27.6 | R199: =ROUND(R195+(R202-R195)/7*4,0) ->  | S199: =R199*0.95 ->  | T199: =R199 ->  | U199: =VLOOKUP(P199,Daten!C$6:E$115,3,FALSE) ->  | V199: =VLOOKUP(P199,Daten!C$6:L$115,10,FALSE) ->  | W199: =VLOOKUP(P199,Daten!C$6:M$115,11,FALSE) ->  | X199: 0.05 | Y199: 0.1 | Z199: 0.8 | AA199: 0.85
P200: 27.8 | Q200: =Q199+0.2 -> 27.8 | R200: =ROUND(R195+(R202-R195)/7*5,0) ->  | U200: =VLOOKUP(P200,Daten!C$6:E$115,3,FALSE) ->  | V200: =VLOOKUP(P200,Daten!C$6:L$115,10,FALSE) ->  | W200: =VLOOKUP(P200,Daten!C$6:M$115,11,FALSE) ->  | X200: 0.05 | Y200: 0.1 | Z200: 0.8 | AA200: 0.85
P201: 27.9 | Q201: =Q200+0.1 -> 27.9 | R201: =ROUND(R195+(R202-R195)/7*6,0) ->  | U201: =VLOOKUP(P201,Daten!C$6:E$115,3,FALSE) ->  | V201: =VLOOKUP(P201,Daten!C$6:L$115,10,FALSE) ->  | W201: =VLOOKUP(P201,Daten!C$6:M$115,11,FALSE) ->  | X201: 0.05 | Y201: 0.1 | Z201: 0.8 | AA201: 0.85
P202: 28 | Q202: =Q201+0.1 -> 28 | R202: =VLOOKUP(Menü!H$24,Sollgewichte!A$4:CD$13,Q202+2,FALSE) ->  | U202: =VLOOKUP(P202,Daten!C$6:E$115,3,FALSE) ->  | V202: =VLOOKUP(P202,Daten!C$6:L$115,10,FALSE) ->  | W202: =VLOOKUP(P202,Daten!C$6:M$115,11,FALSE) ->  | X202: 0.05 | Y202: 0.1 | Z202: 0.8 | AA202: 0.85
... 364 more rows

Sheet Sollgewichte
A2: Lebenswoche: | B2: 0 | C2: 1 | D2: 2 | E2: 3 | F2: 4 | G2: 5 | H2: 6 | I2: 7 | J2: 8 | K2: 9 | L2: 10 | M2: 11 | N2: 12 | O2: 13 | P2: 14 | Q2: 15 | R2: 16 | S2: 17 | T2: 18 | U2: 19 | V2: 20 | W2: 21 | X2: 22 | Y2: 23 | Z2: 24 | AA2: 25 | AB2: 26 | AC2: 27 | AD2: 28 | AE2: 29 | AF2: 30 | AG2: 31 | AH2: 32 | AI2: 33 | AJ2: 34 | AK2: 35 | AL2: 36 | AM2: 37 | AN2: 38 | AO2: 39 | AP2: 40 | AQ2: 41 | AR2: 42 | AS2: 43 | AT2: 44 | AU2: 45 | AV2: 46 | AW2: 47 | AX2: 48 | AY2: 49 | AZ2: 50 | BA2: 51 | BB2: 52 | BC2: 53 | BD2: 54 | BE2: 55 | BF2: 56 | BG2: 57 | BH2: 58 | BI2: 59 | BJ2: 60 | BK2: 61 | BL2: 62 | BM2: 63 | BN2: 64 | BO2: 65 | BP2: 66 | BQ2: 67 | BR2: 68 | BS2: 69 | BT2: 70 | BU2: 71 | BV2: 72 | BW2: 73 | BX2: 74 | BY2: 75 | BZ2: 76 | CA2: 77 | CB2: 78 | CC2: 79 | CD2: 80
A3: Herkunft:
A4: LB Classic Plus | B4: 40 | C4: 75 | D4: 130 | E4: 195 | F4: 275 | G4: 370 | H4: 480 | I4: 590 | J4: 695 | K4: 795 | L4: 890 | M4: 980 | N4: 1068 | O4: 1153 | P4: 1235 | Q4: 1315 | R4: 1395 | S4: 1475 | T4: 1565 | U4: 1655 | V4: 1740 | W4: 1815 | X4: 1894 | Y4: 1934 | Z4: 1974 | AA4: 1989 | AB4: 2004 | AC4: 2011 | AD4: 2017 | AE4: 2022 | AF4: 2027 | AG4: 2032 | AH4: 2037 | AI4: 2042 | AJ4: 2047 | AK4: 2052 | AL4: 2056 | AM4: 2060 | AN4: 2064 | AO4: 2068 | AP4: 2072 | AQ4: 2076 | AR4: 2080 | AS4: 2084 | AT4: 2088 | AU4: 2092 | AV4: 2096 | AW4: 2100 | AX4: 2104 | AY4: 2108 | AZ4: 2112 | BA4: 2116 | BB4: 2120 | BC4: 2124 | BD4: 2128 | BE4: 2132 | BF4: 2136 | BG4: 2140 | BH4: 2144 | BI4: 2148 | BJ4: 2152 | BK4: 2156 | BL4: 2160 | BM4: 2164 | BN4: 2168 | BO4: 2172 | BP4: 2176 | BQ4: 2180 | BR4: 2184 | BS4: 2188 | BT4: 2192 | BU4: 2196 | BV4: 2200 | BW4: 2202 | BX4: 2204 | BY4: 2206 | BZ4: 2208 | CA4: 2210 | CB4: 2212 | CC4: 2214 | CD4: 2216
A5: LB Classic/ Tetra SL | B5: 40 | C5: 75 | D5: 130 | E5: 195 | F5: 275 | G5: 367 | H5: 475 | I5: 583 | J5: 685 | K5: 782 | L5: 874 | M5: 961 | N5: 1043 | O5: 1123 | P5: 1197 | Q5: 1264 | R5: 1330 | S5: 1400 | T5: 1475 | U5: 1555 | V5: 1640 | W5: 1711 | X5: 1790 | Y5: 1830 | Z5: 1870 | AA5: 1885 | AB5: 1900 | AC5: 1905 | AD5: 1911 | AE5: 1915 | AF5: 1920 | AG5: 1923 | AH5: 1925 | AI5: 1928 | AJ5: 1931 | AK5: 1933 | AL5: 1935 | AM5: 1938 | AN5: 1940 | AO5: 1943 | AP5: 1945 | AQ5: 1948 | AR5: 1951 | AS5: 1953 | AT5: 1955 | AU5: 1958 | AV5: 1960 | AW5: 1963 | AX5: 1965 | AY5: 1968 | AZ5: 1971 | BA5: 1973 | BB5: 1975 | BC5: 1978 | BD5: 1980 | BE5: 1984 | BF5: 1985 | BG5: 1989 | BH5: 1991 | BI5: 1993 | BJ5: 1995 | BK5: 1998 | BL5: 2000 | BM5: 2003 | BN5: 2005 | BO5: 2008 | BP5: 2011 | BQ5: 2013 | BR5: 2015 | BS5: 2018 | BT5: 2020 | BU5: 2023 | BV5: 2025 | BW5: 2028 | BX5: 2031 | BY5: 2033 | BZ5: 2035 | CA5: 2038 | CB5: 2040 | CC5: 2043 | CD5: 2045
A6: LB light | B6: 40 | C6: 75 | D6: 125 | E6: 190 | F6: 270 | G6: 360 | H6: 465 | I6: 570 | J6: 670 | K6: 765 | L6: 855 | M6: 940 | N6: 1020 | O6: 1098 | P6: 1171 | Q6: 1236 | R6: 1301 | S6: 1369 | T6: 1443 | U6: 1521 | V6: 1604 | W6: 1673 | X6: 1751 | Y6: 1790 | Z6: 1829 | AA6: 1844 | AB6: 1858 | AC6: 1863 | AD6: 1869 | AE6: 1873 | AF6: 1878 | AG6: 1881 | AH6: 1883 | AI6: 1886 | AJ6: 1889 | AK6: 1891 | AL6: 1893 | AM6: 1895 | AN6: 1897 | AO6: 1900 | AP6: 1902 | AQ6: 1905 | AR6: 1908 | AS6: 1910 | AT6: 1912 | AU6: 1915 | AV6: 1917 | AW6: 1920 | AX6: 1922 | AY6: 1925 | AZ6: 1928 | BA6: 1930 | BB6: 1932 | BC6: 1934 | BD6: 1936 | BE6: 1939 | BF6: 1942 | BG6: 1945 | BH6: 1947 | BI6: 1949 | BJ6: 1951 | BK6: 1954 | BL6: 1956 | BM6: 1959 | BN6: 1961 | BO6: 1964 | BP6: 1967 | BQ6: 1969 | BR6: 1971 | BS6: 1974 | BT6: 1976 | BU6: 1978 | BV6: 1980 | BW6: 1983 | BX6: 1986 | BY6: 1988 | BZ6: 1990 | CA6: 1993 | CB6: 1995 | CC6: 1998 | CD6: 2000
A7: Lohmann Tradition/Silver | B7: 40 | C7: 76 | D7: 132 | E7: 199 | F7: 280 | G7: 374 | H7: 484 | I7: 594 | J7: 698 | K7: 797 | L7: 890 | M7: 979 | N7: 1062 | O7: 1144 | P7: 1219 | Q7: 1287 | R7: 1355 | S7: 1426 | T7: 1502 | U7: 1584 | V7: 1670 | W7: 1743 | X7: 1823 | Y7: 1868 | Z7: 1906 | AA7: 1922 | AB7: 1935 | AC7: 1940 | AD7: 1946 | AE7: 1951 | AF7: 1955 | AG7: 1958 | AH7: 1962 | AI7: 1965 | AJ7: 1968 | AK7: 1971 | AL7: 1974 | AM7: 1977 | AN7: 1980 | AO7: 1983 | AP7: 1986 | AQ7: 1989 | AR7: 1993 | AS7: 1995 | AT7: 1997 | AU7: 1999 | AV7: 2001 | AW7: 2003 | AX7: 2005 | AY7: 2007 | AZ7: 2009 | BA7: 2011 | BB7: 2013 | BC7: 2015 | BD7: 2017 | BE7: 2019 | BF7: 2021 | BG7: 2022 | BH7: 2023 | BI7: 2024 | BJ7: 2025 | BK7: 2026 | BL7: 2027 | BM7: 2028 | BN7: 2029 | BO7: 2030 | BP7: 2031 | BQ7: 2032 | BR7: 2033 | BS7: 2034 | BT7: 2035 | BU7: 2036 | BV7: 2037 | BW7: 2038 | BX7: 2039 | BY7: 2040 | BZ7: 2041 | CA7: 2042 | CB7: 2043 | CC7: 2044 | CD7: 2045
A8: Lohmann Sandy | B8: 40 | C8: 75 | D8: 127 | E8: 190 | F8: 271 | G8: 355 | H8: 452 | I8: 558 | J8: 658 | K8: 758 | L8: 853 | M8: 935 | N8: 1009 | O8: 1072 | P8: 1130 | Q8: 1183 | R8: 1230 | S8: 1280 | T8: 1333 | U8: 1394 | V8: 1459 | W8: 1529 | X8: 1582 | Y8: 1627 | Z8: 1668 | AA8: 1700 | AB8: 1725 | AC8: 1747 | AD8: 1768 | AE8: 1784 | AF8: 1795 | AG8: 1801 | AH8: 1806 | AI8: 1809 | AJ8: 1812 | AK8: 1815 | AL8: 1818 | AM8: 1821 | AN8: 1824 | AO8: 1827 | AP8: 1830 | AQ8: 1833 | AR8: 1836 | AS8: 1839 | AT8: 1842 | AU8: 1845 | AV8: 1848 | AW8: 1851 | AX8: 1854 | AY8: 1855 | AZ8: 1856 | BA8: 1857 | BB8: 1858 | BC8: 1859 | BD8: 1860 | BE8: 1861 | BF8: 1862 | BG8: 1863 | BH8: 1864 | BI8: 1865 | BJ8: 1866 | BK8: 1867 | BL8: 1868 | BM8: 1869 | BN8: 1870 | BO8: 1871 | BP8: 1872 | BQ8: 1873 | BR8: 1874 | BS8: 1875 | BT8: 1876 | BU8: 1877 | BV8: 1878 | BW8: 1879 | BX8: 1880 | BY8: 1881 | BZ8: 1882 | CA8: 1883 | CB8: 1884 | CC8: 1885 | CD8: 1886
A9: LSL Classic | B9: 40 | C9: 75 | D9: 125 | E9: 187 | F9: 257 | G9: 337 | H9: 429 | I9: 529 | J9: 624 | K9: 719 | L9: 809 | M9: 887 | N9: 957 | O9: 1017 | P9: 1072 | Q9: 1122 | R9: 1167 | S9: 1214 | T9: 1264 | U9: 1322 | V9: 1386 | W9: 1450 | X9: 1500 | Y9: 1540 | Z9: 1580 | AA9: 1610 | AB9: 1630 | AC9: 1650 | AD9: 1670 | AE9: 1690 | AF9: 1700 | AG9: 1705 | AH9: 1710 | AI9: 1713 | AJ9: 1715 | AK9: 1718 | AL9: 1720 | AM9: 1723 | AN9: 1725 | AO9: 1728 | AP9: 1730 | AQ9: 1733 | AR9: 1735 | AS9: 1738 | AT9: 1740 | AU9: 1743 | AV9: 1745 | AW9: 1748 | AX9: 1750 | AY9: 1751 | AZ9: 1753 | BA9: 1754 | BB9: 1755 | BC9: 1756 | BD9: 1758 | BE9: 1759 | BF9: 1760 | BG9: 1761 | BH9: 1763 | BI9: 1764 | BJ9: 1765 | BK9: 1766 | BL9: 1768 | BM9: 1769 | BN9: 1770 | BO9: 1771 | BP9: 1773 | BQ9: 1774 | BR9: 1775 | BS9: 1776 | BT9: 1778 | BU9: 1779 | BV9: 1780 | BW9: 1781 | BX9: 1783 | BY9: 1784 | BZ9: 1785 | CA9: 1786 | CB9: 1788 | CC9: 1789 | CD9: 1790
A10: Novogen brown classic | B10: 40 | C10: 65 | D10: 110 | E10: 180 | F10: 270 | G10: 365 | H10: 470 | I10: 570 | J10: 660 | K10: 750 | L10: 840 | M10: 930 | N10: 1020 | O10: 1110 | P10: 1190 | Q10: 1270 | R10: 1350 | S10: 1430 | T10: 1500 | U10: 1580 | V10: 1640 | W10: 1685 | X10: 1720 | Y10: 1745 | Z10: 1765 | AA10: 1780 | AB10: 1790 | AC10: 1805 | AD10: 1815 | AE10: 1820 | AF10: 1820 | AG10: 1825 | AH10: 1825 | AI10: 1825 | AJ10: 1830 | AK10: 1830 | AL10: 1835 | AM10: 1835 | AN10: 1840 | AO10: 1840 | AP10: 1840 | AQ10: 1845 | AR10: 1845 | AS10: 1850 | AT10: 1850 | AU10: 1850 | AV10: 1855 | AW10: 1855 | AX10: 1860 | AY10: 1860 | AZ10: 1860 | BA10: 1865 | BB10: 1865 | BC10: 1865 | BD10: 1870 | BE10: 1870 | BF10: 1875 | BG10: 1875 | BH10: 1880 | BI10: 1880 | BJ10: 1880 | BK10: 1885 | BL10: 1885 | BM10: 1890 | BN10: 1890 | BO10: 1890 | BP10: 1895 | BQ10: 1895 | BR10: 1900 | BS10: 1900 | BT10: 1900 | BU10: 1905 | BV10: 1905 | BW10: 1910 | BX10: 1910 | BY10: 1910 | BZ10: 1915 | CA10: 1915 | CB10: 1920 | CC10: 1920 | CD10: 1920
A11: Novogen brown light | B11: 35 | C11: 65 | D11: 110 | E11: 180 | F11: 270 | G11: 365 | H11: 470 | I11: 570 | J11: 660 | K11: 750 | L11: 840 | M11: 930 | N11: 1020 | O11: 1100 | P11: 1180 | Q11: 1250 | R11: 1325 | S11: 1400 | T11: 1480 | U11: 1550 | V11: 1610 | W11: 1655 | X11: 1690 | Y11: 1710 | Z11: 1725 | AA11: 1735 | AB11: 1745 | AC11: 1755 | AD11: 1765 | AE11: 1770 | AF11: 1770 | AG11: 1775 | AH11: 1775 | AI11: 1775 | AJ11: 1780 | AK11: 1780 | AL11: 1785 | AM11: 1785 | AN11: 1790 | AO11: 1790 | AP11: 1790 | AQ11: 1795 | AR11: 1795 | AS11: 1800 | AT11: 1800 | AU11: 1800 | AV11: 1805 | AW11: 1805 | AX11: 1810 | AY11: 1810 | AZ11: 1810 | BA11: 1815 | BB11: 1815 | BC11: 1815 | BD11: 1820 | BE11: 1820 | BF11: 1825 | BG11: 1825 | BH11: 1830 | BI11: 1830 | BJ11: 1830 | BK11: 1835 | BL11: 1835 | BM11: 1840 | BN11: 1840 | BO11: 1840 | BP11: 1845 | BQ11: 1845 | BR11: 1850 | BS11: 1850 | BT11: 1850 | BU11: 1855 | BV11: 1855 | BW11: 1860 | BX11: 1860 | BY11: 1860 | BZ11: 1865 | CA11: 1865 | CB11: 1870 | CC11: 1870 | CD11: 1870
A12: Dekalb white | B12: 40 | C12: 65 | D12: 120 | E12: 190 | F12: 265 | G12: 345 | H12: 430 | I12: 515 | J12: 600 | K12: 685 | L12: 765 | M12: 845 | N12: 925 | O12: 1000 | P12: 1075 | Q12: 1140 | R12: 1195 | S12: 1270 | T12: 1330 | U12: 1400 | V12: 1460 | W12: 1484 | X12: 1503 | Y12: 1519 | Z12: 1532 | AA12: 1544 | AB12: 1554 | AC12: 1563 | AD12: 1572 | AE12: 1580 | AF12: 1587 | AG12: 1593 | AH12: 1600 | AI12: 1605 | AJ12: 1611 | AK12: 1616 | AL12: 1621 | AM12: 1626 | AN12: 1630 | AO12: 1635 | AP12: 1639 | AQ12: 1643 | AR12: 1646 | AS12: 1650 | AT12: 1654 | AU12: 1657 | AV12: 1660 | AW12: 1663 | AX12: 1667 | AY12: 1670 | AZ12: 1672 | BA12: 1675 | BB12: 1678 | BC12: 1681 | BD12: 1683 | BE12: 1686 | BF12: 1688 | BG12: 1691 | BH12: 1693 | BI12: 1695 | BJ12: 1698 | BK12: 1700 | BL12: 1702 | BM12: 1704 | BN12: 1706 | BO12: 1708 | BP12: 1710 | BQ12: 1712 | BR12: 1714 | BS12: 1716 | BT12: 1718 | BU12: 1720 | BV12: 1721 | BW12: 1723 | BX12: 1725 | BY12: 1727 | BZ12: 1728 | CA12: 1730 | CB12: 1732 | CC12: 1733 | CD12: 1735
A13: Bovans Brown | B13: 40 | C13: 65 | D13: 118 | E13: 191 | F13: 275 | G13: 370 | H13: 471 | I13: 580 | J13: 687 | K13: 793 | L13: 894 | M13: 989 | N13: 1076 | O13: 1161 | P13: 1237 | Q13: 1307 | R13: 1378 | S13: 1440 | T13: 1500 | U13: 1600 | V13: 1650 | W13: 1710 | X13: 1770 | Y13: 1800 | Z13: 1810 | AA13: 1820 | AB13: 1830 | AC13: 1840 | AD13: 1850 | AE13: 1860 | AF13: 1870 | AG13: 1880 | AH13: 1885 | AI13: 1890 | AJ13: 1895 | AK13: 1900 | AL13: 1905 | AM13: 1910 | AN13: 1915 | AO13: 1920 | AP13: 1930 | AQ13: 1935 | AR13: 1940 | AS13: 1943 | AT13: 1946 | AU13: 1950 | AV13: 1955 | AW13: 1956 | AX13: 1957 | AY13: 1958 | AZ13: 1959 | BA13: 1960 | BB13: 1963 | BC13: 1966 | BD13: 1969 | BE13: 1970 | BF13: 1973 | BG13: 1976 | BH13: 1980 | BI13: 1981 | BJ13: 1982 | BK13: 1983 | BL13: 1984 | BM13: 1985 | BN13: 1986 | BO13: 1987 | BP13: 1990 | BQ13: 1991 | BR13: 1992 | BS13: 1993 | BT13: 1994 | BU13: 1995 | BV13: 1996 | BW13: 1997 | BX13: 2000 | BY13: 2000 | BZ13: 2000 | CA13: 2000 | CB13: 2000 | CC13: 2000 | CD13: 2000
A14: Sollgewichte in g
A15: (gemäß angaben der Zuchtfirmen)

Sheet Dateneingabe
B2: Tiergewichte in g: | O2: Herden- / Tiergruppendaten:
B3: Tier: | D3: 0 | E3: 1 | F3: 2 | G3: 3 | H3: 4 | I3: 5 | J3: 6 | K3: 7 | L3: 8 | M3: 9 | O3: Stall / Abteil: | Q3: =Menü!F24 -> 0
B4: x | D4: . | O4: Tieranzahl: | Q4: =Menü!H23 -> 0
B5: 1x | O5: Herkunft: | Q5: =Menü!H24 -> 0
B6: 2x | O6: Schlupfdatum: | Q6: =Menü!J23 -> 00:00:00
B7: 3x | O7: Aufnahmedatum:
B8: 4x | O8: Lebenswoche: | Q8: =ROUND(ROUNDUP((Q7-Menü!J23)/7,1),1) -> 0
B9: 5x | O9: Sollgewicht: | Q9: =VLOOKUP(Q8,Gewichtsentwicklung!P6:R566,3,FALSE) -> 
B10: 6x
B11: 7x
B12: 8x | O12: ="Tier "&V15-4&V16-4 -> Tier 01
B13: 9x
B14: 10x | O14: Gewichtseingabe in g: | V14: 7
B15: 11x | U15: Zeile: | V15: 4
B16: 12x | U16: Spalte | V16: 5
B17: 13x
B18: 14x
D20: Gewicht > 120% Sollgewicht | I20: Gewicht < 80% Sollgewicht

Sheet Impressum
B11: Dieses Managementtool zur Tiergewichtsanalyse wurde im Rahmen des Projektes: „Anwendung eines Managementtools (MTool) zur Verbesserung des Wohlbefindens und der Gesundheit von Legehennen“ am Fachgebiet für Nutztierethologie und Tierhaltung der Universität Kassel entwickelt und durch das Bundesministerium für Ernährung und Landwirtschaft im Rahmen der Modell- und Demonstrationsvorhaben Tierschutz über die Bundesanstalt für Landwirtschaft und Ernährung (Projektträger) gefördert. Weitere Materialien können über www.mud-tierschutz.de bezogen werden.
B13: Verantwortliche Personen:
B14: Projektleitung: | C14: Prof. Dr. Ute Knierim (Universität Kassel, Fachgebiet für Nutztierethologie und Tierhaltung)
B15: Projektdurchführung: | C15: Dr. agr. Dipl. Biol. Christiane Keppler (Universität Kassel, Fachgebiet für Nutztierethologie und Tierhaltung)
B16: Programmierung: | C16: B.Sc. Jonas Keppler (Universität Kassel, Fachgebiet für Nutztierethologie und Tierhaltung)

Sheet Datenexport
A1: Exportdatum: | B1: Betriebskennung: | C1: Stall / Abteil: | D1: Tieranzahl: | E1: Herkunft: | F1: Schlupfdatum: | G1: Aufnahmedatum: | H1: Lebens- tag: | I1: Lebens-woche: | J1: Anzahl gewogener Tiere: | K1: Mittelwert: | L1: Minimum: | M1: Maximum: | N1: Standart-abweichung: | O1: Variationa-koeffizient: | P1: Sollgewicht: | Q1: Sollgewichts-erfüllung: | R1: Uniformität: | S1: Anteil Tiere mit niedrigem Gewicht: | T1: Anzahl Tiere Außerhalb 80%: | U1: Anzahl Tiere Klasse 1: | V1: Anzahl Tiere Klasse 2: | W1: Anzahl Tiere Klasse 3: | X1: Anzahl Tiere Klasse 4: | Y1: Anzahl Tiere Klasse 5: | Z1: Anzahl Tiere Klasse 6: | AA1: Anzahl Tiere Klasse 7: | AB1: Anzahl Tiere Klasse 8: | AC1: Anzahl Tiere Klasse 9: | AD1: Anzahl Tiere Klasse 10: | AE1: # 1 | AF1: # 2 | AG1: # 3 | AH1: # 4 | AI1: # 5 | AJ1: # 6 | AK1: # 7 | AL1: # 8 | AM1: # 9 | AN1: # 10 | AO1: # 11 | AP1: # 12 | AQ1: # 13 | AR1: # 14 | AS1: # 15 | AT1: # 16 | AU1: # 17 | AV1: # 18 | AW1: # 19 | AX1: # 20 | AY1: # 21 | AZ1: # 22 | BA1: # 23 | BB1: # 24 | BC1: # 25 | BD1: # 26 | BE1: # 27 | BF1: # 28 | BG1: # 29 | BH1: # 30 | BI1: # 31 | BJ1: # 32 | BK1: # 33 | BL1: # 34 | BM1: # 35 | BN1: # 36 | BO1: # 37 | BP1: # 38 | BQ1: # 39 | BR1: # 40 | BS1: # 41 | BT1: # 42 | BU1: # 43 | BV1: # 44 | BW1: # 45 | BX1: # 46 | BY1: # 47 | BZ1: # 48 | CA1: # 49 | CB1: # 50 | CC1: # 51 | CD1: # 52 | CE1: # 53 | CF1: # 54 | CG1: # 55 | CH1: # 56 | CI1: # 57 | CJ1: # 58 | CK1: # 59 | CL1: # 60 | CM1: # 61 | CN1: # 62 | CO1: # 63 | CP1: # 64 | CQ1: # 65 | CR1: # 66 | CS1: # 67 | CT1: # 68 | CU1: # 69 | CV1: # 70 | CW1: # 71 | CX1: # 72 | CY1: # 73 | CZ1: # 74 | DA1: # 75 | DB1: # 76 | DC1: # 77 | DD1: # 78 | DE1: # 79 | DF1: # 80 | DG1: # 81 | DH1: # 82 | DI1: # 83 | DJ1: # 84 | DK1: # 85 | DL1: # 86 | DM1: # 87 | DN1: # 88 | DO1: # 89 | DP1: # 90 | DQ1: # 91 | DR1: # 92 | DS1: # 93 | DT1: # 94 | DU1: # 95 | DV1: # 96 | DW1: # 97 | DX1: # 98 | DY1: # 99 | DZ1: # 100 | EA1: # 101 | EB1: # 102 | EC1: # 103 | ED1: # 104 | EE1: # 105 | EF1: # 106 | EG1: # 107 | EH1: # 108 | EI1: # 109 | EJ1: # 110 | EK1: # 111 | EL1: # 112 | EM1: # 113 | EN1: # 114 | EO1: # 115 | EP1: # 116 | EQ1: # 117 | ER1: # 118 | ES1: # 119 | ET1: # 120 | EU1: # 121 | EV1: # 122 | EW1: # 123 | EX1: # 124 | EY1: # 125 | EZ1: # 126 | FA1: # 127 | FB1: # 128 | FC1: # 129 | FD1: # 130 | FE1: # 131 | FF1: # 132 | FG1: # 133 | FH1: # 134 | FI1: # 135 | FJ1: # 136 | FK1: # 137 | FL1: # 138 | FM1: # 139 | FN1: # 140 | FO1: # 141 | FP1: # 142 | FQ1: # 143 | FR1: # 144 | FS1: # 145 | FT1: # 146 | FU1: # 147 | FV1: # 148 | FW1: # 149
